{"text_format":"1","workbook":"xlsx","n_sheets":5,"sheets":["СВОД","база МДФ","база ДСП","данные МДФ","данные ДСП"],"not_rendered":{"charts":0,"images":0,"macros":1,"external_links":0,"defined_names":21,"comments":0,"pivot_tables":1},"unopened":[],"bounds":{"document_bytes":16777216,"sheet_cells":100000,"rows_first":2000,"rows_last":500,"rows_between":2000,"halvings":0,"cell_chars":16384,"cell_head_chars":4096},"cells_cut":0,"cells_raw":0,"read":"whole","date_system":"1900"}

{"sheet":"СВОД","index":0,"n_rows":136,"n_cols":4,"rows_kept":136,"cut":false,"hidden":false,"merged":[]}
[]
["Резерв (№ заказа)","(Все)"]
["Код","(Все)"]
["Дата","(Все)"]
[]
[null,null,"Данные"]
["Наименование","Цвет","Сумма по полю Количество","Сумма по полю Резерв (кол-во)"]
["Высокоглянцевые панели, однотонные, 18 мм","Белый",45]
[null,"Фиолетовый",21]
[null,"Черный",65]
[null,"Крем",48]
[null,"Светло-розовый",21]
["Высокоглянцевые панели, однотонные, 9 мм","Белый",26,2]
[null,"Фиолетовый",11]
[null,"Черный",31]
[null,"Светло-розовый",12]
[null,"Бежевый",21]
["Высокоглянцевые панели, перламутровые, 18 мм","Оранжевый перламутр",5]
[null,"Белый перламутр",64,1]
[null,"Черный перламутр",13,1]
[null,"Бордо перламутр",16]
["Высокоглянцевые панели с голограммой, 18 мм","Shine-1-красный",53]
[null,"Shine-1-белый",42]
[null,"Shine-2- черный",55]
["Высокоглянцевые панели, перламутровые, 9 мм","Оранжевый перламутр",19]
[null,"Белый перламутр",3]
[null,"Черный перламутр",3]
[null,"Бордовый перламутр",14]
[null,"Красный перламутр",10]
[null,"Хаки перламутр ",19]
["Акриловая лента, 21 мм","Оранжевый перламутр",500]
[null,"Фиолетовый",2000]
[null,"Черный ",3300]
[null,"Белый перламутр",2000]
[null,"Роза",6000]
[null,"Светло-розовый",1000]
[null,"Черный перламутр",4900]
[null,"Эбен",800]
[null,"Ясень",2900]
[null,"Белый ",6500]
[null,"Бежевый ",1600]
[null,"Красный перламутр",4900]
[null,"Алюминий перламутр",100]
[null,"Fresh -В",2200]
[null,"Полоска черная",5000]
[null,"Полоска белая",5200]
[null,"Хаки перламутр",400]
[null,"Зебрано светлый",300]
[null,"Зебрано средний",1400]
[null,"Клен светлый",800]
[null,"Клен темный",400]
[null,"Красный",200]
["Высокоглянцевые панели с рисунком, 18 мм","Элеганс черный",47,1]
[null,"Элеганс белый",47,1]
[null,"Элеганс красный",45]
[null,"Fresh А",79]
[null,"Fresh В",34]
[null,"Fresh C ",50]
[null,"Волна черная ",63]
[null,"Волна белая ",6]
[null,"Волна бежевая ",107]
[null,"Sweet красный",13]
[null,"Sweet белый",1]
["МДФ рельефный, черновой, 18 мм","Черновой",42]
["Высокоглянцевые панели с текстурой дерева, 18 мм","Роза",60]
[null,"Черная полоска",62]
[null,"Белая полоска",38]
[null,"Эбен",24]
[null,"Ясень",51]
[null,"Клен",23]
[null,"Орех узорчатый",13]
["Цифровая печать, 18 мм","Ailin 4000- pearl (черный  розы)",8]
[null,"2-line (черные розы-2 ряда)",8]
["Высокоглянцевые панели с рисунком, 9 мм","Элеганс черный",21]
[null,"Элеганс белый",8]
[null,"Элеганс красный",6]
[null,"Fresh -А",32]
[null,"Fresh -B",9]
[null,"Fresh -C ",15]
[null,"Sweet красный",1]
[null,"Sweet черный",11]
["Высокоглянцевые панели с текстурой дерева, 9 мм","Роза",7]
[null,"Черная полоска",6]
[null,"Белая полоска",15]
[null,"Эбен",17]
[null,"Ясень",10]
[null,"Эбоне",24]
[null,"Эбоне №2",3]
["Высокоглянцевые панели с голограммой, 9 мм","Shine-1-красный",26]
[null,"Shine-1-белый",12]
[null,"Shine-2-черный",38]
[null,"Shine-2-белый",9]
[null,"Shine-1 черный",12]
["Цифровая печать, 9 мм","Ailin 2000 (розы россыпью)",0]
[null,"Ailin 3000 (герберы)",11]
[null,"Ailin 4000- pearl(черные розы)",7]
[null,"BF-SUN (желтые цветы)",1]
[null,"Bfred_rose1 (красные розы)",1]
["Акриловая лента, 42 мм","Оранжевый перламутр",500]
[null,"Фиолетовый",285]
[null,"Черный ",800]
[null,"Белый перламутр",400]
[null,"Роза",0]
[null,"Светло-розовый",200]
[null,"Черный перламутр",0]
[null,"Эбен",100]
[null,"Ясень",300]
[null,"Белый ",1100]
[null,"Бежевый ",500]
[null,"Красный перламутр",300]
[null,"Алюминий перламутр",100]
[null,"Полоска черная",300]
[null,"Полоска белая",500]
[null,"Фреш В",300]
[null,"Зебрано средний",400]
[null,"Клен светлый",300]
[null,"Клен темный",200]
[null,"Орех глянец",500]
["Алюминиевый профиль торцевой, L-2800 мм","Серебро",240]
[null,"Золото",160]
["Угловая заглушка","Хром"]
["МДФ, прокладка, 9 мм","МДФ, прокладка, 9 мм",54]
["МДФ, прокладка, 18 мм","МДФ, прокладка, 18 мм",35]
["МДФ, бабочки, 18 мм","МДФ, бабочки, 18 мм",1]
["Искусственный камень Hanssem (Юж. Корея) 3680х760х12","Beige Sands",26]
[null,"Pure White",31]
[null,"Night sky",4]
[null,"Cerus",5]
[null,"Rocky Mountain",10]
[null,"Tourmaline",3]
[null,"Star Burst",9]
[null,"Frost Land",39]
["Искусственный камень Staron (Юж. Корея) 3680х760х12","Pebble Gold",2]
[null,"SANDED GREY",1]
[null,"TEMPEST Starfire",1]
["Общий итог",null,61846,6]

{"sheet":"база МДФ","index":1,"n_rows":260,"n_cols":11,"rows_kept":260,"cut":false,"hidden":false,"merged":[]}
["№№","Дата","Время","Наименование","Цвет","Код","Операция","Количество","Основание","Резерв (№ заказа)","Резерв (кол-во)"]
[{"$f":"IF(ISTEXT(D2),ROW(A1),\"\")","v":1},"2012-03-06",null,"Высокоглянцевые панели, однотонные, 18 мм","Черный",{"$f":"IF(D2=\"\",\"\",INDEX(OFFSET(код,,1),MATCH(D2&E2,OFFSET(код,,-1)&код,0)))","v":118},"приход",19,"перенос остатков"]
[{"$f":"IF(ISTEXT(D3),ROW(A2),\"\")","v":2},"2012-03-06",null,"Высокоглянцевые панели, однотонные, 18 мм","Белый",{"$f":"IF(D3=\"\",\"\",INDEX(OFFSET(код,,1),MATCH(D3&E3,OFFSET(код,,-1)&код,0)))","v":218},"приход",9,"перенос остатков"]
[3,"2012-03-06",null,"Высокоглянцевые панели, однотонные, 18 мм","Крем",{"$f":"IF(D4=\"\",\"\",INDEX(OFFSET(код,,1),MATCH(D4&E4,OFFSET(код,,-1)&код,0)))","v":418},"приход",6,"перенос остатков"]
[4,"2012-03-06",null,"Высокоглянцевые панели, однотонные, 18 мм","Фиолетовый",{"$f":"IF(D5=\"\",\"\",INDEX(OFFSET(код,,1),MATCH(D5&E5,OFFSET(код,,-1)&код,0)))","v":818},"приход",22,"перенос остатков"]
[5,"2012-03-06",null,"Высокоглянцевые панели, однотонные, 18 мм","Светло-розовый",{"$f":"IF(D6=\"\",\"\",INDEX(OFFSET(код,,1),MATCH(D6&E6,OFFSET(код,,-1)&код,0)))","v":918},"приход",21,"перенос остатков"]
[6,"2012-03-06",null,"Высокоглянцевые панели, перламутровые, 18 мм","Черный перламутр",{"$f":"IF(D7=\"\",\"\",INDEX(OFFSET(код,,1),MATCH(D7&E7,OFFSET(код,,-1)&код,0)))","v":101118},"приход",19,"перенос остатков"]
[7,"2012-03-06",null,"Высокоглянцевые панели, перламутровые, 18 мм","Белый перламутр",{"$f":"IF(D8=\"\",\"\",INDEX(OFFSET(код,,1),MATCH(D8&E8,OFFSET(код,,-1)&код,0)))","v":101218},"приход",12,"перенос остатков"]
[8,"2012-03-06",null,"Высокоглянцевые панели, перламутровые, 18 мм","Оранжевый перламутр",{"$f":"IF(D9=\"\",\"\",INDEX(OFFSET(код,,1),MATCH(D9&E9,OFFSET(код,,-1)&код,0)))","v":101518},"приход",7,"перенос остатков"]
[{"$f":"IF(ISTEXT(D10),ROW(A9),\"\")","v":9},"2012-03-06",null,"Высокоглянцевые панели, перламутровые, 18 мм","Бордо перламутр",{"$f":"IF(D10=\"\",\"\",INDEX(OFFSET(код,,1),MATCH(D10&E10,OFFSET(код,,-1)&код,0)))","v":101618},"приход",24,"перенос остатков"]
[10,"2012-03-06",null,"Высокоглянцевые панели с рисунком, 18 мм","Элеганс черный",{"$f":"IF(D11=\"\",\"\",INDEX(OFFSET(код,,1),MATCH(D11&E11,OFFSET(код,,-1)&код,0)))","v":210118},"приход",51,"перенос остатков"]
[{"$f":"IF(ISTEXT(D12),ROW(A11),\"\")","v":11},"2012-03-06",null,"Высокоглянцевые панели с рисунком, 18 мм","Элеганс белый",{"$f":"IF(D12=\"\",\"\",INDEX(OFFSET(код,,1),MATCH(D12&E12,OFFSET(код,,-1)&код,0)))","v":210218},"приход",51,"перенос остатков"]
[12,"2012-03-06",null,"Высокоглянцевые панели с рисунком, 18 мм","Элеганс красный",{"$f":"IF(D13=\"\",\"\",INDEX(OFFSET(код,,1),MATCH(D13&E13,OFFSET(код,,-1)&код,0)))","v":210318},"приход",0,"перенос остатков"]
[13,"2012-03-06",null,"Высокоглянцевые панели с рисунком, 18 мм","Fresh А",{"$f":"IF(D14=\"\",\"\",INDEX(OFFSET(код,,1),MATCH(D14&E14,OFFSET(код,,-1)&код,0)))","v":220218},"приход",87,"перенос остатков"]
[14,"2012-03-06",null,"Высокоглянцевые панели с рисунком, 18 мм","Fresh В",{"$f":"IF(D15=\"\",\"\",INDEX(OFFSET(код,,1),MATCH(D15&E15,OFFSET(код,,-1)&код,0)))","v":220718},"приход",55,"перенос остатков"]
[15,"2012-03-06",null,"Высокоглянцевые панели с рисунком, 18 мм","Fresh C ",{"$f":"IF(D16=\"\",\"\",INDEX(OFFSET(код,,1),MATCH(D16&E16,OFFSET(код,,-1)&код,0)))","v":220118},"приход",52,"перенос остатков"]
[16,"2012-03-06",null,"Высокоглянцевые панели с рисунком, 18 мм","Волна черная ",{"$f":"IF(D17=\"\",\"\",INDEX(OFFSET(код,,1),MATCH(D17&E17,OFFSET(код,,-1)&код,0)))","v":240118},"приход",12,"перенос остатков"]
[{"$f":"IF(ISTEXT(D18),ROW(A17),\"\")","v":17},"2012-03-06",null,"Высокоглянцевые панели с рисунком, 18 мм","Волна белая ",{"$f":"IF(D18=\"\",\"\",INDEX(OFFSET(код,,1),MATCH(D18&E18,OFFSET(код,,-1)&код,0)))","v":240218},"приход",6,"перенос остатков"]
[18,"2012-03-06",null,"Высокоглянцевые панели с рисунком, 18 мм","Волна бежевая ",{"$f":"IF(D19=\"\",\"\",INDEX(OFFSET(код,,1),MATCH(D19&E19,OFFSET(код,,-1)&код,0)))","v":240418},"приход",58,"перенос остатков"]
[19,"2012-03-06",null,"Высокоглянцевые панели с текстурой дерева, 18 мм","Черная полоска",{"$f":"IF(D20=\"\",\"\",INDEX(OFFSET(код,,1),MATCH(D20&E20,OFFSET(код,,-1)&код,0)))","v":230118},"приход",16,"перенос остатков"]
[20,"2012-03-06",null,"Высокоглянцевые панели с текстурой дерева, 18 мм","Белая полоска",{"$f":"IF(D21=\"\",\"\",INDEX(OFFSET(код,,1),MATCH(D21&E21,OFFSET(код,,-1)&код,0)))","v":230218},"приход",14,"перенос остатков"]
[21,"2012-03-06",null,"Высокоглянцевые панели с текстурой дерева, 18 мм","Роза",{"$f":"IF(D22=\"\",\"\",INDEX(OFFSET(код,,1),MATCH(D22&E22,OFFSET(код,,-1)&код,0)))","v":303118},"приход",12,"перенос остатков"]
[22,"2012-03-06",null,"Высокоглянцевые панели с текстурой дерева, 18 мм","Эбен",{"$f":"IF(D23=\"\",\"\",INDEX(OFFSET(код,,1),MATCH(D23&E23,OFFSET(код,,-1)&код,0)))","v":303218},"приход",9,"перенос остатков"]
[23,"2012-03-06",null,"Высокоглянцевые панели с текстурой дерева, 18 мм","Ясень",{"$f":"IF(D24=\"\",\"\",INDEX(OFFSET(код,,1),MATCH(D24&E24,OFFSET(код,,-1)&код,0)))","v":303318},"приход",2,"перенос остатков"]
[24,"2012-03-06",null,"Высокоглянцевые панели с голограммой, 18 мм","Shine-1-белый",{"$f":"IF(D25=\"\",\"\",INDEX(OFFSET(код,,1),MATCH(D25&E25,OFFSET(код,,-1)&код,0)))","v":410218},"приход",43,"перенос остатков"]
[25,"2012-03-06",null,"Высокоглянцевые панели с голограммой, 18 мм","Shine-1-красный",{"$f":"IF(D26=\"\",\"\",INDEX(OFFSET(код,,1),MATCH(D26&E26,OFFSET(код,,-1)&код,0)))","v":410318},"приход",54,"перенос остатков"]
[26,"2012-03-06",null,"Высокоглянцевые панели с голограммой, 18 мм","Shine-2- черный",{"$f":"IF(D27=\"\",\"\",INDEX(OFFSET(код,,1),MATCH(D27&E27,OFFSET(код,,-1)&код,0)))","v":420118},"приход",55,"перенос остатков"]
[27,"2012-03-06",null,"Цифровая печать, 18 мм","Ailin 4000- pearl (черный  розы)",{"$f":"IF(D28=\"\",\"\",INDEX(OFFSET(код,,1),MATCH(D28&E28,OFFSET(код,,-1)&код,0)))","v":540218},"приход",8,"перенос остатков"]
[28,"2012-03-06",null,"Цифровая печать, 18 мм","2-line (черные розы-2 ряда)",{"$f":"IF(D29=\"\",\"\",INDEX(OFFSET(код,,1),MATCH(D29&E29,OFFSET(код,,-1)&код,0)))","v":520218},"приход",8,"перенос остатков"]
[29,"2012-03-06",null,"Высокоглянцевые панели, однотонные, 9 мм","Черный",{"$f":"IF(D30=\"\",\"\",INDEX(OFFSET(код,,1),MATCH(D30&E30,OFFSET(код,,-1)&код,0)))","v":109},"приход",6,"перенос остатков"]
[30,"2012-03-06",null,"Высокоглянцевые панели, однотонные, 9 мм","Белый",{"$f":"IF(D31=\"\",\"\",INDEX(OFFSET(код,,1),MATCH(D31&E31,OFFSET(код,,-1)&код,0)))","v":209},"приход",7,"перенос остатков"]
[31,"2012-03-06",null,"Высокоглянцевые панели, однотонные, 9 мм","Бежевый",{"$f":"IF(D32=\"\",\"\",INDEX(OFFSET(код,,1),MATCH(D32&E32,OFFSET(код,,-1)&код,0)))","v":409},"приход",2,"перенос остатков"]
[32,"2012-03-06",null,"Высокоглянцевые панели, однотонные, 9 мм","Фиолетовый",{"$f":"IF(D33=\"\",\"\",INDEX(OFFSET(код,,1),MATCH(D33&E33,OFFSET(код,,-1)&код,0)))","v":809},"приход",11,"перенос остатков"]
[33,"2012-03-06",null,"Высокоглянцевые панели, однотонные, 9 мм","Светло-розовый",{"$f":"IF(D34=\"\",\"\",INDEX(OFFSET(код,,1),MATCH(D34&E34,OFFSET(код,,-1)&код,0)))","v":909},"приход",13,"перенос остатков"]
[34,"2012-03-06",null,"Высокоглянцевые панели, перламутровые, 9 мм","Черный перламутр",{"$f":"IF(D35=\"\",\"\",INDEX(OFFSET(код,,1),MATCH(D35&E35,OFFSET(код,,-1)&код,0)))","v":101109},"приход",13,"перенос остатков"]
[35,"2012-03-06",null,"Высокоглянцевые панели, перламутровые, 9 мм","Белый перламутр",{"$f":"IF(D36=\"\",\"\",INDEX(OFFSET(код,,1),MATCH(D36&E36,OFFSET(код,,-1)&код,0)))","v":101209},"приход",6,"перенос остатков"]
[36,"2012-03-06",null,"Высокоглянцевые панели, перламутровые, 9 мм","Оранжевый перламутр",{"$f":"IF(D37=\"\",\"\",INDEX(OFFSET(код,,1),MATCH(D37&E37,OFFSET(код,,-1)&код,0)))","v":101509},"приход",19,"перенос остатков"]
[37,"2012-03-06",null,"Высокоглянцевые панели, перламутровые, 9 мм","Бордовый перламутр",{"$f":"IF(D38=\"\",\"\",INDEX(OFFSET(код,,1),MATCH(D38&E38,OFFSET(код,,-1)&код,0)))","v":101609},"приход",27,"перенос остатков"]
[38,"2012-03-06",null,"Высокоглянцевые панели с рисунком, 9 мм","Элеганс черный",{"$f":"IF(D39=\"\",\"\",INDEX(OFFSET(код,,1),MATCH(D39&E39,OFFSET(код,,-1)&код,0)))","v":210109},"приход",19,"перенос остатков"]
[39,"2012-03-06",null,"Высокоглянцевые панели с рисунком, 9 мм","Элеганс белый",{"$f":"IF(D40=\"\",\"\",INDEX(OFFSET(код,,1),MATCH(D40&E40,OFFSET(код,,-1)&код,0)))","v":210209},"приход",13,"перенос остатков"]
[40,"2012-03-06",null,"Высокоглянцевые панели с рисунком, 9 мм","Элеганс красный",{"$f":"IF(D41=\"\",\"\",INDEX(OFFSET(код,,1),MATCH(D41&E41,OFFSET(код,,-1)&код,0)))","v":210309},"приход",33,"перенос остатков"]
[41,"2012-03-06",null,"Высокоглянцевые панели с рисунком, 9 мм","Fresh -А",{"$f":"IF(D42=\"\",\"\",INDEX(OFFSET(код,,1),MATCH(D42&E42,OFFSET(код,,-1)&код,0)))","v":220209},"приход",8,"перенос остатков"]
[42,"2012-03-06",null,"Высокоглянцевые панели с рисунком, 9 мм","Fresh -B",{"$f":"IF(D43=\"\",\"\",INDEX(OFFSET(код,,1),MATCH(D43&E43,OFFSET(код,,-1)&код,0)))","v":220709},"приход",9,"перенос остатков"]
[43,"2012-03-06",null,"Высокоглянцевые панели с рисунком, 9 мм","Fresh -C ",{"$f":"IF(D44=\"\",\"\",INDEX(OFFSET(код,,1),MATCH(D44&E44,OFFSET(код,,-1)&код,0)))","v":220109},"приход",15,"перенос остатков"]
[44,"2012-03-06",null,"Высокоглянцевые панели с текстурой дерева, 9 мм","Черная полоска",{"$f":"IF(D45=\"\",\"\",INDEX(OFFSET(код,,1),MATCH(D45&E45,OFFSET(код,,-1)&код,0)))","v":710109},"приход",15,"перенос остатков"]
[45,"2012-03-06",null,"Высокоглянцевые панели с текстурой дерева, 9 мм","Белая полоска",{"$f":"IF(D46=\"\",\"\",INDEX(OFFSET(код,,1),MATCH(D46&E46,OFFSET(код,,-1)&код,0)))","v":720209},"приход",15,"перенос остатков"]
[46,"2012-03-06",null,"Высокоглянцевые панели с текстурой дерева, 9 мм","Роза",{"$f":"IF(D47=\"\",\"\",INDEX(OFFSET(код,,1),MATCH(D47&E47,OFFSET(код,,-1)&код,0)))","v":303109},"приход",8,"перенос остатков"]
[47,"2012-03-06",null,"Высокоглянцевые панели с текстурой дерева, 9 мм","Эбен",{"$f":"IF(D48=\"\",\"\",INDEX(OFFSET(код,,1),MATCH(D48&E48,OFFSET(код,,-1)&код,0)))","v":303209},"приход",6,"перенос остатков"]
[48,"2012-03-06",null,"Высокоглянцевые панели с текстурой дерева, 9 мм","Ясень",{"$f":"IF(D49=\"\",\"\",INDEX(OFFSET(код,,1),MATCH(D49&E49,OFFSET(код,,-1)&код,0)))","v":303309},"приход",8,"перенос остатков"]
[49,"2012-03-06",null,"Высокоглянцевые панели с голограммой, 9 мм","Shine-1-белый",{"$f":"IF(D50=\"\",\"\",INDEX(OFFSET(код,,1),MATCH(D50&E50,OFFSET(код,,-1)&код,0)))","v":410209},"приход",13,"перенос остатков"]
[50,"2012-03-06",null,"Высокоглянцевые панели с голограммой, 9 мм","Shine-1-красный",{"$f":"IF(D51=\"\",\"\",INDEX(OFFSET(код,,1),MATCH(D51&E51,OFFSET(код,,-1)&код,0)))","v":410309},"приход",30,"перенос остатков"]
[51,"2012-03-06",null,"Высокоглянцевые панели с голограммой, 9 мм","Shine-2-черный",{"$f":"IF(D52=\"\",\"\",INDEX(OFFSET(код,,1),MATCH(D52&E52,OFFSET(код,,-1)&код,0)))","v":420109},"приход",36,"перенос остатков"]
[52,"2012-03-06",null,"Высокоглянцевые панели с голограммой, 9 мм","Shine-2-белый",{"$f":"IF(D53=\"\",\"\",INDEX(OFFSET(код,,1),MATCH(D53&E53,OFFSET(код,,-1)&код,0)))","v":420209},"приход",9,"перенос остатков"]
[53,"2012-03-06",null,"Цифровая печать, 9 мм","Ailin 2000 (розы россыпью)",{"$f":"IF(D54=\"\",\"\",INDEX(OFFSET(код,,1),MATCH(D54&E54,OFFSET(код,,-1)&код,0)))","v":520209},"приход",0,"перенос остатков"]
[54,"2012-03-06",null,"Цифровая печать, 9 мм","Ailin 3000 (герберы)",{"$f":"IF(D55=\"\",\"\",INDEX(OFFSET(код,,1),MATCH(D55&E55,OFFSET(код,,-1)&код,0)))","v":530209},"приход",11,"перенос остатков"]
[55,"2012-03-06",null,"Цифровая печать, 9 мм","Ailin 4000- pearl(черные розы)",{"$f":"IF(D56=\"\",\"\",INDEX(OFFSET(код,,1),MATCH(D56&E56,OFFSET(код,,-1)&код,0)))","v":540209},"приход",7,"перенос остатков"]
[56,"2012-03-06",null,"Цифровая печать, 9 мм","BF-SUN (желтые цветы)",{"$f":"IF(D57=\"\",\"\",INDEX(OFFSET(код,,1),MATCH(D57&E57,OFFSET(код,,-1)&код,0)))","v":560209},"приход",1,"перенос остатков"]
[57,"2012-03-06",null,"Цифровая печать, 9 мм","Bfred_rose1 (красные розы)",{"$f":"IF(D58=\"\",\"\",INDEX(OFFSET(код,,1),MATCH(D58&E58,OFFSET(код,,-1)&код,0)))","v":550209},"приход",1,"перенос остатков"]
[58,"2012-03-06",null,"МДФ рельефный, черновой, 18 мм","Черновой",{"$f":"IF(D59=\"\",\"\",INDEX(OFFSET(код,,1),MATCH(D59&E59,OFFSET(код,,-1)&код,0)))","v":600018},"приход",46,"перенос остатков"]
[59,"2012-03-06",null,"Акриловая лента, 21 мм","Черный ",{"$f":"IF(D60=\"\",\"\",INDEX(OFFSET(код,,1),MATCH(D60&E60,OFFSET(код,,-1)&код,0)))","v":"BKS-9"},"приход",3300,"перенос остатков"]
[{"$f":"IF(ISTEXT(D61),ROW(A60),\"\")","v":60},"2012-03-06",null,"Акриловая лента, 21 мм","Белый ",{"$f":"IF(D61=\"\",\"\",INDEX(OFFSET(код,,1),MATCH(D61&E61,OFFSET(код,,-1)&код,0)))","v":"SW004"},"приход",null,"перенос остатков"]
[{"$f":"IF(ISTEXT(D62),ROW(A61),\"\")","v":61},"2012-03-06",null,"Акриловая лента, 21 мм","Бежевый ",{"$f":"IF(D62=\"\",\"\",INDEX(OFFSET(код,,1),MATCH(D62&E62,OFFSET(код,,-1)&код,0)))","v":"SIV001"},"приход",1900,"перенос остатков"]
[62,"2012-03-06",null,"Акриловая лента, 21 мм","Фиолетовый",{"$f":"IF(D63=\"\",\"\",INDEX(OFFSET(код,,1),MATCH(D63&E63,OFFSET(код,,-1)&код,0)))","v":"SP004"},"приход",2100,"перенос остатков"]
[63,"2012-03-06",null,"Акриловая лента, 21 мм","Светло-розовый",{"$f":"IF(D64=\"\",\"\",INDEX(OFFSET(код,,1),MATCH(D64&E64,OFFSET(код,,-1)&код,0)))","v":" SP004"},"приход",1000,"перенос остатков"]
[64,"2012-03-06",null,"Акриловая лента, 21 мм","Черный перламутр",{"$f":"IF(D65=\"\",\"\",INDEX(OFFSET(код,,1),MATCH(D65&E65,OFFSET(код,,-1)&код,0)))","v":"SB002"},"приход",4900,"перенос остатков"]
[65,"2012-03-06",null,"Акриловая лента, 21 мм","Белый перламутр",{"$f":"IF(D66=\"\",\"\",INDEX(OFFSET(код,,1),MATCH(D66&E66,OFFSET(код,,-1)&код,0)))","v":"SW004-1"},"приход",1900,"перенос остатков"]
[66,"2012-03-06",null,"Акриловая лента, 21 мм","Оранжевый перламутр",{"$f":"IF(D67=\"\",\"\",INDEX(OFFSET(код,,1),MATCH(D67&E67,OFFSET(код,,-1)&код,0)))","v":"SS002"},"приход",600,"перенос остатков"]
[67,"2012-03-06",null,"Акриловая лента, 21 мм","Красный перламутр",{"$f":"IF(D68=\"\",\"\",INDEX(OFFSET(код,,1),MATCH(D68&E68,OFFSET(код,,-1)&код,0)))","v":"SR004"},"приход",5300,"перенос остатков"]
[68,"2012-03-06",null,"Акриловая лента, 21 мм","Алюминий перламутр",{"$f":"IF(D69=\"\",\"\",INDEX(OFFSET(код,,1),MATCH(D69&E69,OFFSET(код,,-1)&код,0)))","v":"SC004"},"приход",100,"перенос остатков"]
[69,"2012-03-06",null,"Акриловая лента, 21 мм","Fresh -В",{"$f":"IF(D70=\"\",\"\",INDEX(OFFSET(код,,1),MATCH(D70&E70,OFFSET(код,,-1)&код,0)))","v":"SG001"},"приход",2100,"перенос остатков"]
[70,"2012-03-06",null,"Акриловая лента, 21 мм","Полоска черная",{"$f":"IF(D71=\"\",\"\",INDEX(OFFSET(код,,1),MATCH(D71&E71,OFFSET(код,,-1)&код,0)))","v":"SBL001"},"приход",100,"перенос остатков"]
[71,"2012-03-06",null,"Акриловая лента, 21 мм","Полоска белая",{"$f":"IF(D72=\"\",\"\",INDEX(OFFSET(код,,1),MATCH(D72&E72,OFFSET(код,,-1)&код,0)))","v":"SWL001"},"приход",200,"перенос остатков"]
[72,"2012-03-06",null,"Акриловая лента, 21 мм","Роза",{"$f":"IF(D73=\"\",\"\",INDEX(OFFSET(код,,1),MATCH(D73&E73,OFFSET(код,,-1)&код,0)))","v":"SG006"},"приход",null,"перенос остатков"]
[73,"2012-03-06",null,"Акриловая лента, 21 мм","Ясень",{"$f":"IF(D74=\"\",\"\",INDEX(OFFSET(код,,1),MATCH(D74&E74,OFFSET(код,,-1)&код,0)))","v":"SP-001"},"приход",2900,"перенос остатков"]
[74,"2012-03-06",null,"Акриловая лента, 42 мм","Черный ",{"$f":"IF(D75=\"\",\"\",INDEX(OFFSET(код,,1),MATCH(D75&E75,OFFSET(код,,-1)&код,0)))","v":"BKS-9"},"приход",100,"перенос остатков"]
[75,"2012-03-06",null,"Акриловая лента, 42 мм","Белый ",{"$f":"IF(D76=\"\",\"\",INDEX(OFFSET(код,,1),MATCH(D76&E76,OFFSET(код,,-1)&код,0)))","v":"SW004"},"приход",200,"перенос остатков"]
[76,"2012-03-06",null,"Акриловая лента, 42 мм","Бежевый ",{"$f":"IF(D77=\"\",\"\",INDEX(OFFSET(код,,1),MATCH(D77&E77,OFFSET(код,,-1)&код,0)))","v":"SIV001"},"приход",null,"перенос остатков"]
[77,"2012-03-06",null,"Акриловая лента, 42 мм","Фиолетовый",{"$f":"IF(D78=\"\",\"\",INDEX(OFFSET(код,,1),MATCH(D78&E78,OFFSET(код,,-1)&код,0)))","v":"SP004"},"приход",285,"перенос остатков"]
[78,"2012-03-06",null,"Акриловая лента, 42 мм","Светло-розовый",{"$f":"IF(D79=\"\",\"\",INDEX(OFFSET(код,,1),MATCH(D79&E79,OFFSET(код,,-1)&код,0)))","v":"SP004"},"приход",200,"перенос остатков"]
[79,"2012-03-06",null,"Акриловая лента, 42 мм","Черный перламутр",{"$f":"IF(D80=\"\",\"\",INDEX(OFFSET(код,,1),MATCH(D80&E80,OFFSET(код,,-1)&код,0)))","v":"SB002"},"приход",700,"перенос остатков"]
[80,"2012-03-06",null,"Акриловая лента, 42 мм","Белый перламутр",{"$f":"IF(D81=\"\",\"\",INDEX(OFFSET(код,,1),MATCH(D81&E81,OFFSET(код,,-1)&код,0)))","v":"SW004-1"},"приход",500,"перенос остатков"]
[81,"2012-03-06",null,"Акриловая лента, 42 мм","Оранжевый перламутр",{"$f":"IF(D82=\"\",\"\",INDEX(OFFSET(код,,1),MATCH(D82&E82,OFFSET(код,,-1)&код,0)))","v":"SS002"},"приход",600,"перенос остатков"]
[82,"2012-03-06",null,"Акриловая лента, 42 мм","Красный перламутр",{"$f":"IF(D83=\"\",\"\",INDEX(OFFSET(код,,1),MATCH(D83&E83,OFFSET(код,,-1)&код,0)))","v":"SR004"},"приход",300,"перенос остатков"]
[83,"2012-03-06",null,"Акриловая лента, 42 мм","Алюминий перламутр",{"$f":"IF(D84=\"\",\"\",INDEX(OFFSET(код,,1),MATCH(D84&E84,OFFSET(код,,-1)&код,0)))","v":"SC004"},"приход",100,"перенос остатков"]
[84,"2012-03-06",null,"Акриловая лента, 42 мм","Фреш В",{"$f":"IF(D85=\"\",\"\",INDEX(OFFSET(код,,1),MATCH(D85&E85,OFFSET(код,,-1)&код,0)))","v":"SG001"},"приход",300,"перенос остатков"]
[85,"2012-03-06",null,"Акриловая лента, 42 мм","Полоска черная",{"$f":"IF(D86=\"\",\"\",INDEX(OFFSET(код,,1),MATCH(D86&E86,OFFSET(код,,-1)&код,0)))","v":"SBL001"},"приход",300,"перенос остатков"]
[86,"2012-03-06",null,"Акриловая лента, 42 мм","Полоска белая",{"$f":"IF(D87=\"\",\"\",INDEX(OFFSET(код,,1),MATCH(D87&E87,OFFSET(код,,-1)&код,0)))","v":"SWL001"},"приход",500,"перенос остатков"]
[87,"2012-03-06",null,"Акриловая лента, 42 мм","Роза",{"$f":"IF(D88=\"\",\"\",INDEX(OFFSET(код,,1),MATCH(D88&E88,OFFSET(код,,-1)&код,0)))","v":"SG006"},"приход",300,"перенос остатков"]
[88,"2012-03-06",null,"Акриловая лента, 42 мм","Ясень",{"$f":"IF(D89=\"\",\"\",INDEX(OFFSET(код,,1),MATCH(D89&E89,OFFSET(код,,-1)&код,0)))","v":"SP-001"},"приход",300,"перенос остатков"]
[89,"2012-03-06",null,"Алюминиевый профиль торцевой, L-2800 мм","Серебро",{"$f":"IF(D90=\"\",\"\",INDEX(OFFSET(код,,1),MATCH(D90&E90,OFFSET(код,,-1)&код,0)))","v":818823},"приход",240,"перенос остатков"]
[90,"2012-03-06",null,"Алюминиевый профиль торцевой, L-2800 мм","Золото",{"$f":"IF(D91=\"\",\"\",INDEX(OFFSET(код,,1),MATCH(D91&E91,OFFSET(код,,-1)&код,0)))","v":818923},"приход",160,"перенос остатков"]
[91,"2012-03-06",null,"Угловая заглушка","Хром",{"$f":"IF(D92=\"\",\"\",INDEX(OFFSET(код,,1),MATCH(D92&E92,OFFSET(код,,-1)&код,0)))","v":828823},"приход",null,"перенос остатков"]
[92,"2012-03-06",null,"Высокоглянцевые панели с рисунком, 18 мм","Sweet красный",{"$f":"IF(D93=\"\",\"\",INDEX(OFFSET(код,,1),MATCH(D93&E93,OFFSET(код,,-1)&код,0)))","v":0},"приход",13,"перенос остатков"]
[93,"2012-03-06",null,"Высокоглянцевые панели с текстурой дерева, 18 мм","Клен",{"$f":"IF(D94=\"\",\"\",INDEX(OFFSET(код,,1),MATCH(D94&E94,OFFSET(код,,-1)&код,0)))","v":0},"приход",21,"перенос остатков"]
[94,"2012-03-06",null,"Высокоглянцевые панели с текстурой дерева, 18 мм","Клен",{"$f":"IF(D95=\"\",\"\",INDEX(OFFSET(код,,1),MATCH(D95&E95,OFFSET(код,,-1)&код,0)))","v":0},"приход",14,"перенос остатков"]
[95,"2012-03-06",null,"Высокоглянцевые панели, перламутровые, 9 мм","Хаки перламутр ",{"$f":"IF(D96=\"\",\"\",INDEX(OFFSET(код,,1),MATCH(D96&E96,OFFSET(код,,-1)&код,0)))","v":0},"приход",19,"перенос остатков"]
[96,"2012-03-06",null,"Высокоглянцевые панели с текстурой дерева, 9 мм","Эбоне",{"$f":"IF(D97=\"\",\"\",INDEX(OFFSET(код,,1),MATCH(D97&E97,OFFSET(код,,-1)&код,0)))","v":0},"приход",24,"перенос остатков"]
[97,"2012-03-06",null,"Высокоглянцевые панели с голограммой, 9 мм","Shine-1 черный",{"$f":"IF(D98=\"\",\"\",INDEX(OFFSET(код,,1),MATCH(D98&E98,OFFSET(код,,-1)&код,0)))","v":410109},"приход",20,"перенос остатков"]
[98,"2012-03-06",null,"Акриловая лента, 21 мм","Хаки перламутр",{"$f":"IF(D99=\"\",\"\",INDEX(OFFSET(код,,1),MATCH(D99&E99,OFFSET(код,,-1)&код,0)))","v":"SG002"},"приход",300,"перенос остатков"]
[99,"2012-03-06",null,"Акриловая лента, 21 мм","Зебрано светлый",{"$f":"IF(D100=\"\",\"\",INDEX(OFFSET(код,,1),MATCH(D100&E100,OFFSET(код,,-1)&код,0)))","v":0},"приход",300,"перенос остатков"]
[100,"2012-03-06",null,"Акриловая лента, 21 мм","Зебрано средний",{"$f":"IF(D101=\"\",\"\",INDEX(OFFSET(код,,1),MATCH(D101&E101,OFFSET(код,,-1)&код,0)))","v":"SG004"},"приход",1500,"перенос остатков"]
[101,"2012-03-06",null,"Акриловая лента, 21 мм","Клен светлый",{"$f":"IF(D102=\"\",\"\",INDEX(OFFSET(код,,1),MATCH(D102&E102,OFFSET(код,,-1)&код,0)))","v":"SP001"},"приход",700,"перенос остатков"]
[102,"2012-03-06",null,"Акриловая лента, 21 мм","Клен темный",{"$f":"IF(D103=\"\",\"\",INDEX(OFFSET(код,,1),MATCH(D103&E103,OFFSET(код,,-1)&код,0)))","v":"SO808"},"приход",400,"перенос остатков"]
[103,"2012-03-06",null,"Акриловая лента, 21 мм","Эбен",{"$f":"IF(D104=\"\",\"\",INDEX(OFFSET(код,,1),MATCH(D104&E104,OFFSET(код,,-1)&код,0)))","v":"SW008"},"приход",4600,"перенос остатков"]
[104,"2012-03-06",null,"Акриловая лента, 42 мм","Зебрано средний",{"$f":"IF(D105=\"\",\"\",INDEX(OFFSET(код,,1),MATCH(D105&E105,OFFSET(код,,-1)&код,0)))","v":" SG004"},"приход",400,"перенос остатков"]
[105,"2012-03-06",null,"Акриловая лента, 42 мм","Клен светлый",{"$f":"IF(D106=\"\",\"\",INDEX(OFFSET(код,,1),MATCH(D106&E106,OFFSET(код,,-1)&код,0)))","v":"SP001"},"приход",300,"перенос остатков"]
[{"$f":"IF(ISTEXT(D107),ROW(A106),\"\")","v":106},"2012-03-06",null,"Акриловая лента, 42 мм","Клен темный",{"$f":"IF(D107=\"\",\"\",INDEX(OFFSET(код,,1),MATCH(D107&E107,OFFSET(код,,-1)&код,0)))","v":"SO808"},"приход",200,"перенос остатков"]
[107,"2012-03-06",null,"Акриловая лента, 42 мм","Орех глянец",{"$f":"IF(D108=\"\",\"\",INDEX(OFFSET(код,,1),MATCH(D108&E108,OFFSET(код,,-1)&код,0)))","v":"SW001"},"приход",500,"перенос остатков"]
[108,"2012-03-07",null,"Высокоглянцевые панели, однотонные, 18 мм","Черный",{"$f":"IF(D109=\"\",\"\",INDEX(OFFSET(код,,1),MATCH(D109&E109,OFFSET(код,,-1)&код,0)))","v":118},"приход",50,"нкладная РО 21"]
[109,"2012-03-07",null,"Высокоглянцевые панели, однотонные, 18 мм","Белый",{"$f":"IF(D110=\"\",\"\",INDEX(OFFSET(код,,1),MATCH(D110&E110,OFFSET(код,,-1)&код,0)))","v":218},"приход",50,"нкладная РО 21"]
[110,"2012-03-07",null,"Высокоглянцевые панели, однотонные, 18 мм","Крем",{"$f":"IF(D111=\"\",\"\",INDEX(OFFSET(код,,1),MATCH(D111&E111,OFFSET(код,,-1)&код,0)))","v":418},"приход",50,"нкладная РО 21"]
[111,"2012-03-07",null,"Высокоглянцевые панели с текстурой дерева, 18 мм","Эбен",{"$f":"IF(D112=\"\",\"\",INDEX(OFFSET(код,,1),MATCH(D112&E112,OFFSET(код,,-1)&код,0)))","v":303218},"приход",25,"нкладная РО 21"]
[{"$f":"IF(ISTEXT(D113),ROW(A112),\"\")","v":112},"2012-03-07",null,"Высокоглянцевые панели с текстурой дерева, 18 мм","Роза",{"$f":"IF(D113=\"\",\"\",INDEX(OFFSET(код,,1),MATCH(D113&E113,OFFSET(код,,-1)&код,0)))","v":303118},"приход",50,"нкладная РО 21"]
[113,"2012-03-07",null,"Высокоглянцевые панели с текстурой дерева, 18 мм","Ясень",{"$f":"IF(D114=\"\",\"\",INDEX(OFFSET(код,,1),MATCH(D114&E114,OFFSET(код,,-1)&код,0)))","v":303318},"приход",50,"нкладная РО 21"]
[114,"2012-03-07",null,"Высокоглянцевые панели, перламутровые, 18 мм","Белый перламутр",{"$f":"IF(D115=\"\",\"\",INDEX(OFFSET(код,,1),MATCH(D115&E115,OFFSET(код,,-1)&код,0)))","v":101218},"приход",50,"нкладная РО 21"]
[115,"2012-03-07",null,"Высокоглянцевые панели с текстурой дерева, 18 мм","Белая полоска",{"$f":"IF(D116=\"\",\"\",INDEX(OFFSET(код,,1),MATCH(D116&E116,OFFSET(код,,-1)&код,0)))","v":230218},"приход",25,"нкладная РО 21"]
[116,"2012-03-07",null,"Высокоглянцевые панели с текстурой дерева, 18 мм","Черная полоска",{"$f":"IF(D117=\"\",\"\",INDEX(OFFSET(код,,1),MATCH(D117&E117,OFFSET(код,,-1)&код,0)))","v":230118},"приход",50,"нкладная РО 21"]
[117,"2012-03-07",null,"Высокоглянцевые панели с рисунком, 18 мм","Волна бежевая ",{"$f":"IF(D118=\"\",\"\",INDEX(OFFSET(код,,1),MATCH(D118&E118,OFFSET(код,,-1)&код,0)))","v":240418},"приход",50,"нкладная РО 21"]
[118,"2012-03-07",null,"Высокоглянцевые панели с рисунком, 18 мм","Волна черная ",{"$f":"IF(D119=\"\",\"\",INDEX(OFFSET(код,,1),MATCH(D119&E119,OFFSET(код,,-1)&код,0)))","v":240118},"приход",50,"нкладная РО 21"]
[119,"2012-03-07",null,"Высокоглянцевые панели с рисунком, 18 мм","Элеганс красный",{"$f":"IF(D120=\"\",\"\",INDEX(OFFSET(код,,1),MATCH(D120&E120,OFFSET(код,,-1)&код,0)))","v":210318},"приход",50,"нкладная РО 21"]
[120,"2012-03-07",null,"Высокоглянцевые панели, однотонные, 9 мм","Черный",{"$f":"IF(D121=\"\",\"\",INDEX(OFFSET(код,,1),MATCH(D121&E121,OFFSET(код,,-1)&код,0)))","v":109},"приход",25,"нкладная РО 21"]
[121,"2012-03-07",null,"Высокоглянцевые панели, однотонные, 9 мм","Бежевый",{"$f":"IF(D122=\"\",\"\",INDEX(OFFSET(код,,1),MATCH(D122&E122,OFFSET(код,,-1)&код,0)))","v":409},"приход",25,"нкладная РО 21"]
[122,"2012-03-07",null,"Высокоглянцевые панели, однотонные, 9 мм","Белый",{"$f":"IF(D123=\"\",\"\",INDEX(OFFSET(код,,1),MATCH(D123&E123,OFFSET(код,,-1)&код,0)))","v":209},"приход",25,"нкладная РО 21"]
[123,"2012-03-07",null,"Высокоглянцевые панели с рисунком, 9 мм","Fresh -А",{"$f":"IF(D124=\"\",\"\",INDEX(OFFSET(код,,1),MATCH(D124&E124,OFFSET(код,,-1)&код,0)))","v":220209},"приход",25,"нкладная РО 21"]
[124,"2012-03-07",null,"Акриловая лента, 21 мм","Белый ",{"$f":"IF(D125=\"\",\"\",INDEX(OFFSET(код,,1),MATCH(D125&E125,OFFSET(код,,-1)&код,0)))","v":"SW004"},"приход",7000,"нкладная РО 21"]
[125,"2012-03-07",null,"Акриловая лента, 21 мм","Полоска черная",{"$f":"IF(D126=\"\",\"\",INDEX(OFFSET(код,,1),MATCH(D126&E126,OFFSET(код,,-1)&код,0)))","v":"SBL001"},"приход",5000,"нкладная РО 21"]
[126,"2012-03-07",null,"Акриловая лента, 21 мм","Полоска белая",{"$f":"IF(D127=\"\",\"\",INDEX(OFFSET(код,,1),MATCH(D127&E127,OFFSET(код,,-1)&код,0)))","v":"SWL001"},"приход",5000,"нкладная РО 21"]
[127,"2012-03-07",null,"Акриловая лента, 21 мм","Роза",{"$f":"IF(D128=\"\",\"\",INDEX(OFFSET(код,,1),MATCH(D128&E128,OFFSET(код,,-1)&код,0)))","v":"SG006"},"приход",3000,"нкладная РО 21"]
[128,"2012-03-07",null,"Акриловая лента, 42 мм","Белый ",{"$f":"IF(D129=\"\",\"\",INDEX(OFFSET(код,,1),MATCH(D129&E129,OFFSET(код,,-1)&код,0)))","v":"SW004"},"приход",1000,"нкладная РО 21"]
[129,"2012-03-07",null,"Акриловая лента, 42 мм","Бежевый ",{"$f":"IF(D130=\"\",\"\",INDEX(OFFSET(код,,1),MATCH(D130&E130,OFFSET(код,,-1)&код,0)))","v":"SIV001"},"приход",500,"нкладная РО 21"]
[130,"2012-03-06",null,"Высокоглянцевые панели, однотонные, 18 мм","Черный",{"$f":"IF(D131=\"\",\"\",INDEX(OFFSET(код,,1),MATCH(D131&E131,OFFSET(код,,-1)&код,0)))","v":118},"расход",-4,"ревизия "]
[131,"2012-03-06",null,"Высокоглянцевые панели, однотонные, 18 мм","Крем",{"$f":"IF(D132=\"\",\"\",INDEX(OFFSET(код,,1),MATCH(D132&E132,OFFSET(код,,-1)&код,0)))","v":418},"расход",-1,"ревизия "]
[132,"2012-03-06",null,"Высокоглянцевые панели, перламутровые, 18 мм","Оранжевый перламутр",{"$f":"IF(D133=\"\",\"\",INDEX(OFFSET(код,,1),MATCH(D133&E133,OFFSET(код,,-1)&код,0)))","v":101518},"расход",-2,"ревизия "]
[133,"2012-03-06",null,"Высокоглянцевые панели, перламутровые, 18 мм","Белый перламутр",{"$f":"IF(D134=\"\",\"\",INDEX(OFFSET(код,,1),MATCH(D134&E134,OFFSET(код,,-1)&код,0)))","v":101218},"приход",2,"ревизия "]
[134,"2012-03-06",null,"Высокоглянцевые панели, перламутровые, 18 мм","Черный перламутр",{"$f":"IF(D135=\"\",\"\",INDEX(OFFSET(код,,1),MATCH(D135&E135,OFFSET(код,,-1)&код,0)))","v":101118},"расход",-1,"ревизия "]
[135,"2012-03-06",null,"Высокоглянцевые панели, перламутровые, 18 мм","Бордо перламутр",{"$f":"IF(D136=\"\",\"\",INDEX(OFFSET(код,,1),MATCH(D136&E136,OFFSET(код,,-1)&код,0)))","v":101618},"расход",-5,"ревизия "]
[136,"2012-03-06",null,"Высокоглянцевые панели с рисунком, 18 мм","Элеганс черный",{"$f":"IF(D137=\"\",\"\",INDEX(OFFSET(код,,1),MATCH(D137&E137,OFFSET(код,,-1)&код,0)))","v":210118},"расход",-1,"ревизия "]
[137,"2012-03-06",null,"Высокоглянцевые панели с рисунком, 18 мм","Элеганс белый",{"$f":"IF(D138=\"\",\"\",INDEX(OFFSET(код,,1),MATCH(D138&E138,OFFSET(код,,-1)&код,0)))","v":210218},"расход",-3,"ревизия "]
[138,"2012-03-06",null,"Высокоглянцевые панели с рисунком, 18 мм","Элеганс красный",{"$f":"IF(D139=\"\",\"\",INDEX(OFFSET(код,,1),MATCH(D139&E139,OFFSET(код,,-1)&код,0)))","v":210318},"приход",1,"ревизия "]
[139,"2012-03-06",null,"Высокоглянцевые панели с рисунком, 18 мм","Fresh А",{"$f":"IF(D140=\"\",\"\",INDEX(OFFSET(код,,1),MATCH(D140&E140,OFFSET(код,,-1)&код,0)))","v":220218},"расход",-1,"ревизия "]
[140,"2012-03-06",null,"Высокоглянцевые панели с рисунком, 18 мм","Fresh В",{"$f":"IF(D141=\"\",\"\",INDEX(OFFSET(код,,1),MATCH(D141&E141,OFFSET(код,,-1)&код,0)))","v":220718},"расход",-18,"ревизия "]
[141,"2012-03-06",null,"Высокоглянцевые панели с рисунком, 18 мм","Fresh C ",{"$f":"IF(D142=\"\",\"\",INDEX(OFFSET(код,,1),MATCH(D142&E142,OFFSET(код,,-1)&код,0)))","v":220118},"расход",-2,"ревизия "]
[142,"2012-03-06",null,"Высокоглянцевые панели с рисунком, 18 мм","Волна черная ",{"$f":"IF(D143=\"\",\"\",INDEX(OFFSET(код,,1),MATCH(D143&E143,OFFSET(код,,-1)&код,0)))","v":240118},"приход",1,"ревизия "]
[143,"2012-03-06",null,"Высокоглянцевые панели с рисунком, 18 мм","Волна бежевая ",{"$f":"IF(D144=\"\",\"\",INDEX(OFFSET(код,,1),MATCH(D144&E144,OFFSET(код,,-1)&код,0)))","v":240418},"расход",-1,"ревизия "]
[144,"2012-03-06",null,"Высокоглянцевые панели с рисунком, 18 мм","Sweet белый",{"$f":"IF(D145=\"\",\"\",INDEX(OFFSET(код,,1),MATCH(D145&E145,OFFSET(код,,-1)&код,0)))","v":0},"приход",1,"ревизия "]
[145,"2012-03-06",null,"Высокоглянцевые панели с текстурой дерева, 18 мм","Роза",{"$f":"IF(D146=\"\",\"\",INDEX(OFFSET(код,,1),MATCH(D146&E146,OFFSET(код,,-1)&код,0)))","v":303118},"расход",-1,"ревизия "]
[146,"2012-03-06",null,"Высокоглянцевые панели с текстурой дерева, 18 мм","Черная полоска",{"$f":"IF(D147=\"\",\"\",INDEX(OFFSET(код,,1),MATCH(D147&E147,OFFSET(код,,-1)&код,0)))","v":230118},"расход",-1,"ревизия "]
[147,"2012-03-06",null,"Высокоглянцевые панели с текстурой дерева, 18 мм","Белая полоска",{"$f":"IF(D148=\"\",\"\",INDEX(OFFSET(код,,1),MATCH(D148&E148,OFFSET(код,,-1)&код,0)))","v":230218},"приход",1,"ревизия "]
[148,"2012-03-06",null,"Высокоглянцевые панели с текстурой дерева, 18 мм","Клен",{"$f":"IF(D149=\"\",\"\",INDEX(OFFSET(код,,1),MATCH(D149&E149,OFFSET(код,,-1)&код,0)))","v":0},"расход",-12,"ревизия "]
[149,"2012-03-06",null,"Высокоглянцевые панели с текстурой дерева, 18 мм","Орех узорчатый",{"$f":"IF(D150=\"\",\"\",INDEX(OFFSET(код,,1),MATCH(D150&E150,OFFSET(код,,-1)&код,0)))","v":0},"приход",13,"ревизия "]
[150,"2012-03-06",null,"Высокоглянцевые панели с голограммой, 18 мм","Shine-1-красный",{"$f":"IF(D151=\"\",\"\",INDEX(OFFSET(код,,1),MATCH(D151&E151,OFFSET(код,,-1)&код,0)))","v":410318},"расход",-1,"ревизия "]
[151,"2012-03-06",null,"Высокоглянцевые панели с голограммой, 18 мм","Shine-1-белый",{"$f":"IF(D152=\"\",\"\",INDEX(OFFSET(код,,1),MATCH(D152&E152,OFFSET(код,,-1)&код,0)))","v":410218},"расход",-1,"ревизия "]
[152,"2012-03-06",null,"Высокоглянцевые панели, однотонные, 9 мм","Белый",{"$f":"IF(D153=\"\",\"\",INDEX(OFFSET(код,,1),MATCH(D153&E153,OFFSET(код,,-1)&код,0)))","v":209},"расход",-1,"ревизия "]
[153,"2012-03-06",null,"Высокоглянцевые панели, однотонные, 9 мм","Светло-розовый",{"$f":"IF(D154=\"\",\"\",INDEX(OFFSET(код,,1),MATCH(D154&E154,OFFSET(код,,-1)&код,0)))","v":909},"расход",-1,"ревизия "]
[154,"2012-03-06",null,"Высокоглянцевые панели, однотонные, 9 мм","Бежевый",{"$f":"IF(D155=\"\",\"\",INDEX(OFFSET(код,,1),MATCH(D155&E155,OFFSET(код,,-1)&код,0)))","v":409},"расход",-2,"ревизия "]
[155,"2012-03-06",null,"Высокоглянцевые панели, перламутровые, 9 мм","Черный перламутр",{"$f":"IF(D156=\"\",\"\",INDEX(OFFSET(код,,1),MATCH(D156&E156,OFFSET(код,,-1)&код,0)))","v":101109},"расход",-10,"ревизия "]
[156,"2012-03-06",null,"Высокоглянцевые панели, перламутровые, 9 мм","Бордовый перламутр",{"$f":"IF(D157=\"\",\"\",INDEX(OFFSET(код,,1),MATCH(D157&E157,OFFSET(код,,-1)&код,0)))","v":101609},"расход",-12,"ревизия "]
[{"$f":"IF(ISTEXT(D158),ROW(A157),\"\")","v":157},"2012-03-06",null,"Высокоглянцевые панели с рисунком, 9 мм","Элеганс черный",{"$f":"IF(D158=\"\",\"\",INDEX(OFFSET(код,,1),MATCH(D158&E158,OFFSET(код,,-1)&код,0)))","v":210109},"приход",3,"ревизия "]
[158,"2012-03-06",null,"Высокоглянцевые панели с рисунком, 9 мм","Элеганс белый",{"$f":"IF(D159=\"\",\"\",INDEX(OFFSET(код,,1),MATCH(D159&E159,OFFSET(код,,-1)&код,0)))","v":210209},"расход",-1,"ревизия "]
[159,"2012-03-06",null,"Высокоглянцевые панели с рисунком, 9 мм","Элеганс красный",{"$f":"IF(D160=\"\",\"\",INDEX(OFFSET(код,,1),MATCH(D160&E160,OFFSET(код,,-1)&код,0)))","v":210309},"расход",-27,"ревизия "]
[160,"2012-03-06",null,"Высокоглянцевые панели с рисунком, 9 мм","Fresh -А",{"$f":"IF(D161=\"\",\"\",INDEX(OFFSET(код,,1),MATCH(D161&E161,OFFSET(код,,-1)&код,0)))","v":220209},"расход",-1,"ревизия "]
[161,"2012-03-06",null,"Высокоглянцевые панели с текстурой дерева, 9 мм","Роза",{"$f":"IF(D162=\"\",\"\",INDEX(OFFSET(код,,1),MATCH(D162&E162,OFFSET(код,,-1)&код,0)))","v":303109},"расход",-1,"ревизия "]
[162,"2012-03-06",null,"Высокоглянцевые панели с текстурой дерева, 9 мм","Черная полоска",{"$f":"IF(D163=\"\",\"\",INDEX(OFFSET(код,,1),MATCH(D163&E163,OFFSET(код,,-1)&код,0)))","v":710109},"расход",-9,"ревизия "]
[163,"2012-03-06",null,"Высокоглянцевые панели с текстурой дерева, 9 мм","Эбен",{"$f":"IF(D164=\"\",\"\",INDEX(OFFSET(код,,1),MATCH(D164&E164,OFFSET(код,,-1)&код,0)))","v":303209},"приход",11,"ревизия "]
[164,"2012-03-06",null,"Высокоглянцевые панели с текстурой дерева, 9 мм","Ясень",{"$f":"IF(D165=\"\",\"\",INDEX(OFFSET(код,,1),MATCH(D165&E165,OFFSET(код,,-1)&код,0)))","v":303309},"приход",2,"ревизия "]
[165,"2012-03-06",null,"Высокоглянцевые панели с текстурой дерева, 9 мм","Эбоне №2",{"$f":"IF(D166=\"\",\"\",INDEX(OFFSET(код,,1),MATCH(D166&E166,OFFSET(код,,-1)&код,0)))","v":0},"приход",3,"ревизия "]
[166,"2012-03-06",null,"Высокоглянцевые панели с голограммой, 9 мм","Shine-1-красный",{"$f":"IF(D167=\"\",\"\",INDEX(OFFSET(код,,1),MATCH(D167&E167,OFFSET(код,,-1)&код,0)))","v":410309},"расход",-4,"ревизия "]
[167,"2012-03-06",null,"Высокоглянцевые панели с голограммой, 9 мм","Shine-1-белый",{"$f":"IF(D168=\"\",\"\",INDEX(OFFSET(код,,1),MATCH(D168&E168,OFFSET(код,,-1)&код,0)))","v":410209},"приход",3,"ревизия "]
[168,"2012-03-06",null,"Высокоглянцевые панели с голограммой, 9 мм","Shine-2-черный",{"$f":"IF(D169=\"\",\"\",INDEX(OFFSET(код,,1),MATCH(D169&E169,OFFSET(код,,-1)&код,0)))","v":420109},"приход",2,"ревизия "]
[169,"2012-03-06",null,"Высокоглянцевые панели с голограммой, 9 мм","Shine-1 черный",{"$f":"IF(D170=\"\",\"\",INDEX(OFFSET(код,,1),MATCH(D170&E170,OFFSET(код,,-1)&код,0)))","v":410109},"расход",-8,"ревизия "]
[170,"2012-03-06",null,"Высокоглянцевые панели, перламутровые, 9 мм","Красный перламутр",{"$f":"IF(D171=\"\",\"\",INDEX(OFFSET(код,,1),MATCH(D171&E171,OFFSET(код,,-1)&код,0)))","v":0},"приход",10,"ревизия "]
[171,"2012-03-06",null,"Высокоглянцевые панели с рисунком, 9 мм","Sweet красный",{"$f":"IF(D172=\"\",\"\",INDEX(OFFSET(код,,1),MATCH(D172&E172,OFFSET(код,,-1)&код,0)))","v":0},"приход",1,"ревизия "]
[172,"2012-03-06",null,"Высокоглянцевые панели с рисунком, 9 мм","Sweet черный",{"$f":"IF(D173=\"\",\"\",INDEX(OFFSET(код,,1),MATCH(D173&E173,OFFSET(код,,-1)&код,0)))","v":0},"приход",11,"ревизия "]
[173,"2012-03-06",null,"МДФ рельефный, черновой, 18 мм","Черновой",{"$f":"IF(D174=\"\",\"\",INDEX(OFFSET(код,,1),MATCH(D174&E174,OFFSET(код,,-1)&код,0)))","v":600018},"расход",-4,"ревизия "]
[174,"2012-03-06",null,"МДФ, прокладка, 9 мм","МДФ, прокладка, 9 мм",{"$f":"IF(D175=\"\",\"\",INDEX(OFFSET(код,,1),MATCH(D175&E175,OFFSET(код,,-1)&код,0)))","v":0},"приход",54,"ревизия "]
[175,"2012-03-06",null,"МДФ, прокладка, 18 мм","МДФ, прокладка, 18 мм",{"$f":"IF(D176=\"\",\"\",INDEX(OFFSET(код,,1),MATCH(D176&E176,OFFSET(код,,-1)&код,0)))","v":0},"приход",35,"ревизия "]
[176,"2012-03-06",null,"МДФ, бабочки, 18 мм","МДФ, бабочки, 18 мм",{"$f":"IF(D177=\"\",\"\",INDEX(OFFSET(код,,1),MATCH(D177&E177,OFFSET(код,,-1)&код,0)))","v":0},"приход",1,"ревизия "]
[177,"2012-03-07",null,"Искусственный камень Hanssem (Юж. Корея) 3680х760х12","Beige Sands",{"$f":"IF(D178=\"\",\"\",INDEX(OFFSET(код,,1),MATCH(D178&E178,OFFSET(код,,-1)&код,0)))","v":"S-102 "},"приход",30,"нкладная РО 21"]
[{"$f":"IF(ISTEXT(D179),ROW(A178),\"\")","v":178},"2012-03-07",null,"Искусственный камень Hanssem (Юж. Корея) 3680х760х12","Pure White",{"$f":"IF(D179=\"\",\"\",INDEX(OFFSET(код,,1),MATCH(D179&E179,OFFSET(код,,-1)&код,0)))","v":"A-104"},"приход",30,"нкладная РО 21"]
[179,"2012-03-06",null,"Искусственный камень Hanssem (Юж. Корея) 3680х760х12","Pure White",{"$f":"IF(D180=\"\",\"\",INDEX(OFFSET(код,,1),MATCH(D180&E180,OFFSET(код,,-1)&код,0)))","v":"A-104"},"приход",1,"ревизия "]
[180,"2012-03-06",null,"Искусственный камень Hanssem (Юж. Корея) 3680х760х12","Night sky",{"$f":"IF(D181=\"\",\"\",INDEX(OFFSET(код,,1),MATCH(D181&E181,OFFSET(код,,-1)&код,0)))","v":"S-119 "},"приход",4,"ревизия "]
[181,"2012-03-06",null,"Искусственный камень Hanssem (Юж. Корея) 3680х760х12","Cerus",{"$f":"IF(D182=\"\",\"\",INDEX(OFFSET(код,,1),MATCH(D182&E182,OFFSET(код,,-1)&код,0)))","v":"F-005 "},"приход",5,"ревизия "]
[182,"2012-03-06",null,"Искусственный камень Hanssem (Юж. Корея) 3680х760х12","Rocky Mountain",{"$f":"IF(D183=\"\",\"\",INDEX(OFFSET(код,,1),MATCH(D183&E183,OFFSET(код,,-1)&код,0)))","v":"F-109 "},"приход",10,"ревизия "]
[183,"2012-03-06",null,"Искусственный камень Hanssem (Юж. Корея) 3680х760х12","Beige Sands",{"$f":"IF(D184=\"\",\"\",INDEX(OFFSET(код,,1),MATCH(D184&E184,OFFSET(код,,-1)&код,0)))","v":"S-102 "},"приход",1,"ревизия "]
[184,"2012-03-06",null,"Искусственный камень Hanssem (Юж. Корея) 3680х760х12","Tourmaline",{"$f":"IF(D185=\"\",\"\",INDEX(OFFSET(код,,1),MATCH(D185&E185,OFFSET(код,,-1)&код,0)))","v":"T-002 "},"приход",3,"ревизия "]
[185,"2012-03-06",null,"Искусственный камень Hanssem (Юж. Корея) 3680х760х12","Star Burst",{"$f":"IF(D186=\"\",\"\",INDEX(OFFSET(код,,1),MATCH(D186&E186,OFFSET(код,,-1)&код,0)))","v":"F-204 "},"приход",9,"ревизия "]
[186,"2012-03-06",null,"Искусственный камень Hanssem (Юж. Корея) 3680х760х12","Frost Land",{"$f":"IF(D187=\"\",\"\",INDEX(OFFSET(код,,1),MATCH(D187&E187,OFFSET(код,,-1)&код,0)))","v":"F-104 "},"приход",39,"ревизия "]
[187,"2012-03-06",null,"Искусственный камень Staron (Юж. Корея) 3680х760х12","Pebble Gold",{"$f":"IF(D188=\"\",\"\",INDEX(OFFSET(код,,1),MATCH(D188&E188,OFFSET(код,,-1)&код,0)))","v":"PG840"},"приход",2,"ревизия "]
[188,"2012-03-06",null,"Искусственный камень Staron (Юж. Корея) 3680х760х12","SANDED GREY",{"$f":"IF(D189=\"\",\"\",INDEX(OFFSET(код,,1),MATCH(D189&E189,OFFSET(код,,-1)&код,0)))","v":"SG420 "},"приход",1,"ревизия "]
[189,"2012-03-06",null,"Искусственный камень Staron (Юж. Корея) 3680х760х12","TEMPEST Starfire",{"$f":"IF(D190=\"\",\"\",INDEX(OFFSET(код,,1),MATCH(D190&E190,OFFSET(код,,-1)&код,0)))","v":"FS198"},"приход",1,"ревизия "]
[{"$f":"IF(ISTEXT(D191),ROW(A190),\"\")","v":190},"2012-03-06",null,"Высокоглянцевые панели, перламутровые, 9 мм","Белый перламутр",{"$f":"IF(D191=\"\",\"\",INDEX(OFFSET(код,,1),MATCH(D191&E191,OFFSET(код,,-1)&код,0)))","v":101209},"расход",-3,213]
[191,"2012-03-06",null,"Высокоглянцевые панели, перламутровые, 18 мм","Черный перламутр",{"$f":"IF(D192=\"\",\"\",INDEX(OFFSET(код,,1),MATCH(D192&E192,OFFSET(код,,-1)&код,0)))","v":101118},"расход",-2,1216]
[192,"2012-03-06",null,"Высокоглянцевые панели, перламутровые, 18 мм","Бордо перламутр",{"$f":"IF(D193=\"\",\"\",INDEX(OFFSET(код,,1),MATCH(D193&E193,OFFSET(код,,-1)&код,0)))","v":101618},"расход",-3,2078]
[193,"2012-03-06",null,"Высокоглянцевые панели, перламутровые, 9 мм","Бордовый перламутр",{"$f":"IF(D194=\"\",\"\",INDEX(OFFSET(код,,1),MATCH(D194&E194,OFFSET(код,,-1)&код,0)))","v":101609},"расход",-1,"Заказ 0213"]
[194,"2012-03-06",null,"Высокоглянцевые панели с рисунком, 18 мм","Fresh В",{"$f":"IF(D195=\"\",\"\",INDEX(OFFSET(код,,1),MATCH(D195&E195,OFFSET(код,,-1)&код,0)))","v":220718},"расход",-1,"Заказ 03013"]
[195,"2012-03-06",null,"Высокоглянцевые панели с рисунком, 9 мм","Элеганс белый",{"$f":"IF(D196=\"\",\"\",INDEX(OFFSET(код,,1),MATCH(D196&E196,OFFSET(код,,-1)&код,0)))","v":210209},"расход",-2,"Заказ 02069"]
[196,"2012-03-06",null,"Высокоглянцевые панели с текстурой дерева, 18 мм","Роза",{"$f":"IF(D197=\"\",\"\",INDEX(OFFSET(код,,1),MATCH(D197&E197,OFFSET(код,,-1)&код,0)))","v":303118},"расход",-1,"Заказ ИП Абилов"]
[197,"2012-03-07",null,"Высокоглянцевые панели с рисунком, 18 мм","Fresh А",{"$f":"IF(D198=\"\",\"\",INDEX(OFFSET(код,,1),MATCH(D198&E198,OFFSET(код,,-1)&код,0)))","v":220218},"расход",-2,"Заказ 0301"]
[198,"2012-03-09",null,"Высокоглянцевые панели, однотонные, 9 мм","Бежевый",{"$f":"IF(D199=\"\",\"\",INDEX(OFFSET(код,,1),MATCH(D199&E199,OFFSET(код,,-1)&код,0)))","v":409},"расход",-4,"Заказ 1203/3"]
[199,"2012-03-09",null,"Высокоглянцевые панели, однотонные, 18 мм","Крем",{"$f":"IF(D200=\"\",\"\",INDEX(OFFSET(код,,1),MATCH(D200&E200,OFFSET(код,,-1)&код,0)))","v":418},"расход",-7,"Заказ 1212/2/3"]
[200,"2012-03-09",null,"Высокоглянцевые панели, однотонные, 18 мм","Белый",{"$f":"IF(D201=\"\",\"\",INDEX(OFFSET(код,,1),MATCH(D201&E201,OFFSET(код,,-1)&код,0)))","v":218},"расход",-2,"Заказ 02065"]
[201,"2012-03-09",null,"Высокоглянцевые панели с рисунком, 18 мм","Элеганс белый",{"$f":"IF(D202=\"\",\"\",INDEX(OFFSET(код,,1),MATCH(D202&E202,OFFSET(код,,-1)&код,0)))","v":210218},"расход",-1,"Заказ 03023"]
[202,"2012-03-09",null,"Высокоглянцевые панели с текстурой дерева, 18 мм","Белая полоска",{"$f":"IF(D203=\"\",\"\",INDEX(OFFSET(код,,1),MATCH(D203&E203,OFFSET(код,,-1)&код,0)))","v":230218},"расход",-1,"Заказ 03021"]
[203,"2012-03-09",null,"Высокоглянцевые панели, однотонные, 18 мм","Белый",{"$f":"IF(D204=\"\",\"\",INDEX(OFFSET(код,,1),MATCH(D204&E204,OFFSET(код,,-1)&код,0)))","v":218},"расход",-8,"Заказ 03010"]
[204,"2012-03-09",null,"Высокоглянцевые панели с рисунком, 18 мм","Fresh А",{"$f":"IF(D205=\"\",\"\",INDEX(OFFSET(код,,1),MATCH(D205&E205,OFFSET(код,,-1)&код,0)))","v":220218},"расход",-3,"Заказ 1215"]
[205,"2012-03-09",null,"Высокоглянцевые панели, перламутровые, 18 мм","Черный перламутр",{"$f":"IF(D206=\"\",\"\",INDEX(OFFSET(код,,1),MATCH(D206&E206,OFFSET(код,,-1)&код,0)))","v":101118},"расход",-2,"Заказ 1215"]
[206,"2012-03-09",null,"Высокоглянцевые панели с рисунком, 18 мм","Элеганс черный",{"$f":"IF(D207=\"\",\"\",INDEX(OFFSET(код,,1),MATCH(D207&E207,OFFSET(код,,-1)&код,0)))","v":210118},"расход",-2,"Заказ 0265"]
[207,"2012-03-09",null,"Высокоглянцевые панели с текстурой дерева, 18 мм","Черная полоска",{"$f":"IF(D208=\"\",\"\",INDEX(OFFSET(код,,1),MATCH(D208&E208,OFFSET(код,,-1)&код,0)))","v":230118},"расход",-2,"Заказ 03021"]
[208,"2012-03-09",null,"Высокоглянцевые панели с текстурой дерева, 18 мм","Эбен",{"$f":"IF(D209=\"\",\"\",INDEX(OFFSET(код,,1),MATCH(D209&E209,OFFSET(код,,-1)&код,0)))","v":303218},"расход",-9,"Заказ 03010"]
[209,"2012-03-09",null,"Высокоглянцевые панели, однотонные, 9 мм","Белый",{"$f":"IF(D210=\"\",\"\",INDEX(OFFSET(код,,1),MATCH(D210&E210,OFFSET(код,,-1)&код,0)))","v":209},"расход",-4,"Заказ 1114/4"]
[210,"2012-03-09",null,"Высокоглянцевые панели с рисунком, 18 мм","Fresh В",{"$f":"IF(D211=\"\",\"\",INDEX(OFFSET(код,,1),MATCH(D211&E211,OFFSET(код,,-1)&код,0)))","v":220718},"расход",-1,"Заказ 1209"]
[211,"2012-03-09",null,"Высокоглянцевые панели с рисунком, 18 мм","Элеганс красный",{"$f":"IF(D212=\"\",\"\",INDEX(OFFSET(код,,1),MATCH(D212&E212,OFFSET(код,,-1)&код,0)))","v":210318},"расход",-2,"Заказ 03012"]
[212,"2012-03-09",null,"Высокоглянцевые панели с текстурой дерева, 18 мм","Белая полоска",{"$f":"IF(D213=\"\",\"\",INDEX(OFFSET(код,,1),MATCH(D213&E213,OFFSET(код,,-1)&код,0)))","v":230218},"расход",-1,"Заказ 03012"]
[213,"2012-03-09",null,"Высокоглянцевые панели с текстурой дерева, 18 мм","Черная полоска",{"$f":"IF(D214=\"\",\"\",INDEX(OFFSET(код,,1),MATCH(D214&E214,OFFSET(код,,-1)&код,0)))","v":230118},"расход",-1,"Заказ 03012"]
[214,"2012-03-09",null,"Высокоглянцевые панели, перламутровые, 18 мм","Черный перламутр",{"$f":"IF(D215=\"\",\"\",INDEX(OFFSET(код,,1),MATCH(D215&E215,OFFSET(код,,-1)&код,0)))","v":101118},"расход",-1,"Заказ 1215/2"]
[215,"2012-03-09",null,"Акриловая лента, 21 мм","Белый ",{"$f":"IF(D216=\"\",\"\",INDEX(OFFSET(код,,1),MATCH(D216&E216,OFFSET(код,,-1)&код,0)))","v":"SW004"},"расход",-400,"Толик"]
[216,"2012-03-09",null,"Акриловая лента, 21 мм","Красный перламутр",{"$f":"IF(D217=\"\",\"\",INDEX(OFFSET(код,,1),MATCH(D217&E217,OFFSET(код,,-1)&код,0)))","v":"SR004"},"расход",-100,"Толик"]
[217,"2012-03-09",null,"Искусственный камень Hanssem (Юж. Корея) 3680х760х12","Beige Sands",{"$f":"IF(D218=\"\",\"\",INDEX(OFFSET(код,,1),MATCH(D218&E218,OFFSET(код,,-1)&код,0)))","v":"S-102 "},"расход",-5,"Заказ 003004"]
[218,"2012-03-12",null,"Высокоглянцевые панели с рисунком, 9 мм","Элеганс черный",{"$f":"IF(D219=\"\",\"\",INDEX(OFFSET(код,,1),MATCH(D219&E219,OFFSET(код,,-1)&код,0)))","v":210109},"расход",-1,"Заказ 03016"]
[219,"2012-03-12",null,"Высокоглянцевые панели с рисунком, 18 мм","Элеганс черный",{"$f":"IF(D220=\"\",\"\",INDEX(OFFSET(код,,1),MATCH(D220&E220,OFFSET(код,,-1)&код,0)))","v":210118},"расход",-1,"Заказ 03016"]
[220,"2012-03-12",null,"Высокоглянцевые панели с рисунком, 9 мм","Элеганс белый",{"$f":"IF(D221=\"\",\"\",INDEX(OFFSET(код,,1),MATCH(D221&E221,OFFSET(код,,-1)&код,0)))","v":210209},"расход",-2,"Заказ 03021"]
[221,"2012-03-12",null,"Высокоглянцевые панели с текстурой дерева, 18 мм","Эбен",{"$f":"IF(D222=\"\",\"\",INDEX(OFFSET(код,,1),MATCH(D222&E222,OFFSET(код,,-1)&код,0)))","v":303218},"расход",-1,"Заказ 03028"]
[222,"2012-03-12",null,"Высокоглянцевые панели, однотонные, 18 мм","Белый",{"$f":"IF(D223=\"\",\"\",INDEX(OFFSET(код,,1),MATCH(D223&E223,OFFSET(код,,-1)&код,0)))","v":218},"расход",-3,"Заказ 03016"]
[223,"2012-03-12",null,"Высокоглянцевые панели, однотонные, 9 мм","Белый",{"$f":"IF(D224=\"\",\"\",INDEX(OFFSET(код,,1),MATCH(D224&E224,OFFSET(код,,-1)&код,0)))","v":209},"расход",-1,"Заказ 1114/4"]
[224,"2012-03-12",null,"Высокоглянцевые панели с рисунком, 18 мм","Элеганс красный",{"$f":"IF(D225=\"\",\"\",INDEX(OFFSET(код,,1),MATCH(D225&E225,OFFSET(код,,-1)&код,0)))","v":210318},"расход",-2,"Заказ 03022"]
[225,"2012-03-12",null,"Высокоглянцевые панели, однотонные, 18 мм","Белый",{"$f":"IF(D226=\"\",\"\",INDEX(OFFSET(код,,1),MATCH(D226&E226,OFFSET(код,,-1)&код,0)))","v":218},"расход",-1,"Заказ 03022"]
[226,"2012-03-12",null,"Высокоглянцевые панели с рисунком, 18 мм","Fresh А",{"$f":"IF(D227=\"\",\"\",INDEX(OFFSET(код,,1),MATCH(D227&E227,OFFSET(код,,-1)&код,0)))","v":220218},"расход",-2,"Заказ 03022"]
[227,"2012-03-12",null,"Высокоглянцевые панели с голограммой, 9 мм","Shine-1-белый",{"$f":"IF(D228=\"\",\"\",INDEX(OFFSET(код,,1),MATCH(D228&E228,OFFSET(код,,-1)&код,0)))","v":410209},"расход",-4,"Заказ 03022"]
[228,"2012-03-12",null,"Высокоглянцевые панели с рисунком, 18 мм","Fresh В",{"$f":"IF(D229=\"\",\"\",INDEX(OFFSET(код,,1),MATCH(D229&E229,OFFSET(код,,-1)&код,0)))","v":220718},"расход",-1,"Заказ 03030"]
[229,"2012-03-12",null,"Высокоглянцевые панели с рисунком, 18 мм","Элеганс красный",{"$f":"IF(D230=\"\",\"\",INDEX(OFFSET(код,,1),MATCH(D230&E230,OFFSET(код,,-1)&код,0)))","v":210318},"расход",-1,"Заказ 03030"]
[230,"2012-03-12",null,"Высокоглянцевые панели с рисунком, 18 мм","Элеганс красный",{"$f":"IF(D231=\"\",\"\",INDEX(OFFSET(код,,1),MATCH(D231&E231,OFFSET(код,,-1)&код,0)))","v":210318},"расход",-1,"Заказ 03011"]
[231,"2012-03-12",null,"Высокоглянцевые панели, однотонные, 18 мм","Фиолетовый",{"$f":"IF(D232=\"\",\"\",INDEX(OFFSET(код,,1),MATCH(D232&E232,OFFSET(код,,-1)&код,0)))","v":818},"расход",-1,"Заказ 03026"]
[232,"2012-03-12",null,"Высокоглянцевые панели с текстурой дерева, 18 мм","Ясень",{"$f":"IF(D233=\"\",\"\",INDEX(OFFSET(код,,1),MATCH(D233&E233,OFFSET(код,,-1)&код,0)))","v":303318},"расход",-1,"Заказ 0211"]
[233,"2012-03-12",null,"Акриловая лента, 21 мм","Белый ",{"$f":"IF(D234=\"\",\"\",INDEX(OFFSET(код,,1),MATCH(D234&E234,OFFSET(код,,-1)&код,0)))","v":"SW004"},"расход",-100,"Заказ 03022"]
[234,"2012-03-12",null,"Акриловая лента, 42 мм","Белый перламутр",{"$f":"IF(D235=\"\",\"\",INDEX(OFFSET(код,,1),MATCH(D235&E235,OFFSET(код,,-1)&код,0)))","v":"SW004-1"},"расход",-100,"Толик"]
[235,"2012-03-12",null,"Акриловая лента, 21 мм","Эбен",{"$f":"IF(D236=\"\",\"\",INDEX(OFFSET(код,,1),MATCH(D236&E236,OFFSET(код,,-1)&код,0)))","v":"SW008"},"расход",-300,"Толик"]
[{"$f":"IF(ISTEXT(D237),ROW(A236),\"\")","v":236},"2012-03-06",null,"Акриловая лента, 21 мм","Оранжевый перламутр",{"$f":"IF(D237=\"\",\"\",INDEX(OFFSET(код,,1),MATCH(D237&E237,OFFSET(код,,-1)&код,0)))","v":"SS002"},"расход",-100,"ревизия "]
[237,"2012-03-06",null,"Акриловая лента, 21 мм","Фиолетовый",{"$f":"IF(D238=\"\",\"\",INDEX(OFFSET(код,,1),MATCH(D238&E238,OFFSET(код,,-1)&код,0)))","v":"SP004"},"расход",-100,"ревизия "]
[238,"2012-03-06",null,"Акриловая лента, 21 мм","Белый перламутр",{"$f":"IF(D239=\"\",\"\",INDEX(OFFSET(код,,1),MATCH(D239&E239,OFFSET(код,,-1)&код,0)))","v":"SW004-1"},"приход",100,"ревизия "]
[239,"2012-03-06",null,"Акриловая лента, 21 мм","Роза",{"$f":"IF(D240=\"\",\"\",INDEX(OFFSET(код,,1),MATCH(D240&E240,OFFSET(код,,-1)&код,0)))","v":"SG006"},"приход",3000,"ревизия "]
[240,"2012-03-06",null,"Акриловая лента, 21 мм","Эбен",{"$f":"IF(D241=\"\",\"\",INDEX(OFFSET(код,,1),MATCH(D241&E241,OFFSET(код,,-1)&код,0)))","v":"SW008"},"расход",-3500,"ревизия "]
[241,"2012-03-06",null,"Акриловая лента, 21 мм","Бежевый ",{"$f":"IF(D242=\"\",\"\",INDEX(OFFSET(код,,1),MATCH(D242&E242,OFFSET(код,,-1)&код,0)))","v":"SIV001"},"расход",-300,"ревизия "]
[242,"2012-03-06",null,"Акриловая лента, 21 мм","Красный перламутр",{"$f":"IF(D243=\"\",\"\",INDEX(OFFSET(код,,1),MATCH(D243&E243,OFFSET(код,,-1)&код,0)))","v":"SR004"},"расход",-300,"ревизия "]
[243,"2012-03-06",null,"Акриловая лента, 21 мм","Fresh -В",{"$f":"IF(D244=\"\",\"\",INDEX(OFFSET(код,,1),MATCH(D244&E244,OFFSET(код,,-1)&код,0)))","v":"SG001"},"приход",100,"ревизия "]
[244,"2012-03-06",null,"Акриловая лента, 21 мм","Полоска черная",{"$f":"IF(D245=\"\",\"\",INDEX(OFFSET(код,,1),MATCH(D245&E245,OFFSET(код,,-1)&код,0)))","v":"SBL001"},"расход",-100,"ревизия "]
[245,"2012-03-06",null,"Акриловая лента, 21 мм","Хаки перламутр",{"$f":"IF(D246=\"\",\"\",INDEX(OFFSET(код,,1),MATCH(D246&E246,OFFSET(код,,-1)&код,0)))","v":"SG002"},"приход",100,"ревизия "]
[246,"2012-03-06",null,"Акриловая лента, 21 мм","Зебрано средний",{"$f":"IF(D247=\"\",\"\",INDEX(OFFSET(код,,1),MATCH(D247&E247,OFFSET(код,,-1)&код,0)))","v":"SG004"},"расход",-100,"ревизия "]
[247,"2012-03-06",null,"Акриловая лента, 21 мм","Клен светлый",{"$f":"IF(D248=\"\",\"\",INDEX(OFFSET(код,,1),MATCH(D248&E248,OFFSET(код,,-1)&код,0)))","v":"SP001"},"приход",100,"ревизия "]
[248,"2012-03-06",null,"Акриловая лента, 21 мм","Красный",{"$f":"IF(D249=\"\",\"\",INDEX(OFFSET(код,,1),MATCH(D249&E249,OFFSET(код,,-1)&код,0)))","v":0},"приход",200,"ревизия "]
[249,"2012-03-06",null,"Акриловая лента, 42 мм","Оранжевый перламутр",{"$f":"IF(D250=\"\",\"\",INDEX(OFFSET(код,,1),MATCH(D250&E250,OFFSET(код,,-1)&код,0)))","v":"SS002"},"расход",-100,"ревизия "]
[{"$f":"IF(ISTEXT(D251),ROW(A250),\"\")","v":250},"2012-03-06",null,"Акриловая лента, 42 мм","Черный ",{"$f":"IF(D251=\"\",\"\",INDEX(OFFSET(код,,1),MATCH(D251&E251,OFFSET(код,,-1)&код,0)))","v":"BKS-9"},"приход",700,"ревизия "]
[251,"2012-03-06",null,"Акриловая лента, 42 мм","Роза",{"$f":"IF(D252=\"\",\"\",INDEX(OFFSET(код,,1),MATCH(D252&E252,OFFSET(код,,-1)&код,0)))","v":"SG006"},"расход",-300,"ревизия "]
[252,"2012-03-06",null,"Акриловая лента, 42 мм","Черный перламутр",{"$f":"IF(D253=\"\",\"\",INDEX(OFFSET(код,,1),MATCH(D253&E253,OFFSET(код,,-1)&код,0)))","v":"SB002"},"расход",-700,"ревизия "]
[253,"2012-03-06",null,"Акриловая лента, 42 мм","Белый ",{"$f":"IF(D254=\"\",\"\",INDEX(OFFSET(код,,1),MATCH(D254&E254,OFFSET(код,,-1)&код,0)))","v":"SW004"},"расход",-100,"ревизия "]
[254,"2012-03-06",null,"Акриловая лента, 42 мм","Эбен",{"$f":"IF(D255=\"\",\"\",INDEX(OFFSET(код,,1),MATCH(D255&E255,OFFSET(код,,-1)&код,0)))","v":0},"приход",100,"ревизия "]
[255,"2012-03-13",null,"Высокоглянцевые панели, перламутровые, 18 мм","Черный перламутр",{"$f":"IF(D256=\"\",\"\",INDEX(OFFSET(код,,1),MATCH(D256&E256,OFFSET(код,,-1)&код,0)))","v":101118},null,null,"Алма мебель",null,1]
[256,"2012-03-13",null,"Высокоглянцевые панели, перламутровые, 18 мм","Белый перламутр",{"$f":"IF(D257=\"\",\"\",INDEX(OFFSET(код,,1),MATCH(D257&E257,OFFSET(код,,-1)&код,0)))","v":101218},null,null,"Алма мебель",null,1]
[257,"2012-03-13",null,"Высокоглянцевые панели, однотонные, 9 мм","Белый",{"$f":"IF(D258=\"\",\"\",INDEX(OFFSET(код,,1),MATCH(D258&E258,OFFSET(код,,-1)&код,0)))","v":209},null,null,"Алма мебель",null,2]
[{"$f":"IF(ISTEXT(D259),ROW(A258),\"\")","v":258},"2012-03-14",null,"Высокоглянцевые панели с рисунком, 18 мм","Элеганс белый",{"$f":"IF(D259=\"\",\"\",INDEX(OFFSET(код,,1),MATCH(D259&E259,OFFSET(код,,-1)&код,0)))","v":210218},null,null,"Алма мебель",null,1]
[{"$f":"IF(ISTEXT(D260),ROW(A259),\"\")","v":259},"2012-03-14",null,"Высокоглянцевые панели с рисунком, 18 мм","Элеганс черный",{"$f":"IF(D260=\"\",\"\",INDEX(OFFSET(код,,1),MATCH(D260&E260,OFFSET(код,,-1)&код,0)))","v":210118},null,null,"Алма мебель",null,1]

{"sheet":"база ДСП","index":2,"n_rows":4,"n_cols":11,"rows_kept":4,"cut":false,"hidden":false,"merged":[]}
["№№","Дата","Время","Наименование","Цвет","Код","Операция","Количество","Основание","Резерв (№ заказа)","Резерв (кол-во)"]
[{"$f":"IF(ISTEXT(D2),ROW(A1),\"\")","v":1},"2012-03-06",null,"Высокоглянцевые панели с текстурой дерева, 18 мм","Ясень",{"$f":"IF(D2=\"\",\"\",INDEX(OFFSET(код,,1),MATCH(D2&E2,OFFSET(код,,-1)&код,0)))","v":303318},"приход",19,"перенос остатков"]
[{"$f":"IF(ISTEXT(D3),ROW(A2),\"\")","v":2},"2012-03-06",null,"Высокоглянцевые панели, однотонные, 18 мм","Белый",{"$f":"IF(D3=\"\",\"\",INDEX(OFFSET(код,,1),MATCH(D3&E3,OFFSET(код,,-1)&код,0)))","v":218},"приход",9,"перенос остатков"]
[3,"2012-03-06",null,"Высокоглянцевые панели, однотонные, 18 мм","Крем",{"$f":"IF(D4=\"\",\"\",INDEX(OFFSET(код,,1),MATCH(D4&E4,OFFSET(код,,-1)&код,0)))","v":418},"приход",6,"перенос остатков"]

{"sheet":"данные МДФ","index":3,"n_rows":283,"n_cols":8,"rows_kept":283,"cut":false,"hidden":false,"merged":[]}
[null,"Для_цветов","Цвета","Код",null,"Наименования"]
[null,"Высокоглянцевые панели, однотонные, 18 мм","Черный",118,null,"Высокоглянцевые панели, однотонные, 18 мм",null,"приход"]
[null,"Высокоглянцевые панели, однотонные, 18 мм","Белый",218,null,"Высокоглянцевые панели, перламутровые, 18 мм",null,"расход"]
[null,"Высокоглянцевые панели, однотонные, 18 мм","Крем",418,null,"Высокоглянцевые панели с рисунком, 18 мм"]
[null,"Высокоглянцевые панели, однотонные, 18 мм","Фиолетовый",818,null,"Высокоглянцевые панели с текстурой дерева, 18 мм"]
[null,"Высокоглянцевые панели, однотонные, 18 мм","Светло-розовый",918,null,"Высокоглянцевые панели с голограммой, 18 мм"]
[null,"Высокоглянцевые панели, перламутровые, 18 мм","Черный перламутр",101118,null,"Цифровая печать, 18 мм"]
[null,"Высокоглянцевые панели, перламутровые, 18 мм","Белый перламутр",101218,null,"Высокоглянцевые панели, однотонные, 9 мм"]
[null,"Высокоглянцевые панели, перламутровые, 18 мм","Оранжевый перламутр",101518,null,"Высокоглянцевые панели, перламутровые, 9 мм"]
[null,"Высокоглянцевые панели, перламутровые, 18 мм","Бордо перламутр",101618,null,"Высокоглянцевые панели с рисунком, 9 мм"]
[null,"Высокоглянцевые панели с рисунком, 18 мм","Элеганс черный",210118,null,"Высокоглянцевые панели с текстурой дерева, 9 мм"]
[null,"Высокоглянцевые панели с рисунком, 18 мм","Элеганс белый",210218,null,"Высокоглянцевые панели с голограммой, 9 мм"]
[null,"Высокоглянцевые панели с рисунком, 18 мм","Элеганс красный",210318,null,"Цифровая печать, 9 мм"]
[null,"Высокоглянцевые панели с рисунком, 18 мм","Fresh А",220218,null,"МДФ рельефный, черновой, 18 мм"]
[null,"Высокоглянцевые панели с рисунком, 18 мм","Fresh В",220718,null,"МДФ рельефный,  крашенный (матовый), 18 мм"]
[null,"Высокоглянцевые панели с рисунком, 18 мм","Fresh C ",220118,null,"Акриловая лента, 21 мм"]
[null,"Высокоглянцевые панели с рисунком, 18 мм","Волна черная ",240118,null,"Акриловая лента, 42 мм"]
[null,"Высокоглянцевые панели с рисунком, 18 мм","Волна белая ",240218,null,"Алюминиевый профиль торцевой, L-2800 мм"]
[null,"Высокоглянцевые панели с рисунком, 18 мм","Волна бежевая ",240418,null,"Угловая заглушка"]
[null,"Высокоглянцевые панели с рисунком, 18 мм","Sweet красный",null,null,"МДФ, прокладка, 9 мм"]
[null,"Высокоглянцевые панели с рисунком, 18 мм","Sweet белый",null,null,"МДФ, прокладка, 18 мм"]
[null,"Высокоглянцевые панели с текстурой дерева, 18 мм","Черная полоска",230118,null,"МДФ, бабочки, 18 мм"]
[null,"Высокоглянцевые панели с текстурой дерева, 18 мм","Белая полоска",230218,null,"Искусственный камень Hanssem (Юж. Корея) 3680х760х12"]
[null,"Высокоглянцевые панели с текстурой дерева, 18 мм","Роза",303118,null,"Искусственный камень Staron (Юж. Корея) 3680х760х12"]
[null,"Высокоглянцевые панели с текстурой дерева, 18 мм","Эбен",303218,null,"Искусственный камень LG Hi-macs (Юж. Корея) 3680х760х12"]
[null,"Высокоглянцевые панели с текстурой дерева, 18 мм","Ясень",303318]
[null,"Высокоглянцевые панели с текстурой дерева, 18 мм","Клен"]
[null,"Высокоглянцевые панели с текстурой дерева, 18 мм","Орех узорчатый"]
[null,"Высокоглянцевые панели с голограммой, 18 мм","Shine-1-белый",410218]
[null,"Высокоглянцевые панели с голограммой, 18 мм","Shine-1-красный",410318]
[null,"Высокоглянцевые панели с голограммой, 18 мм","Shine-2- черный",420118]
[null,"Цифровая печать, 18 мм","Ailin 4000- pearl (черный  розы)",540218]
[null,"Цифровая печать, 18 мм","2-line (черные розы-2 ряда)",520218]
[null,"Цифровая печать, 18 мм","Ailin 3000- pearl,(Pink flower)",530218]
[null,"Высокоглянцевые панели, однотонные, 9 мм","Черный",109]
[null,"Высокоглянцевые панели, однотонные, 9 мм","Белый",209]
[null,"Высокоглянцевые панели, однотонные, 9 мм","Бежевый",409]
[null,"Высокоглянцевые панели, однотонные, 9 мм","Фиолетовый",809]
[null,"Высокоглянцевые панели, однотонные, 9 мм","Светло-розовый",909]
[null,"Высокоглянцевые панели, перламутровые, 9 мм","Черный перламутр",101109]
[null,"Высокоглянцевые панели, перламутровые, 9 мм","Белый перламутр",101209]
[null,"Высокоглянцевые панели, перламутровые, 9 мм","Оранжевый перламутр",101509]
[null,"Высокоглянцевые панели, перламутровые, 9 мм","Бордовый перламутр",101609]
[null,"Высокоглянцевые панели, перламутровые, 9 мм","Красный перламутр"]
[null,"Высокоглянцевые панели, перламутровые, 9 мм","Хаки перламутр "]
[null,"Высокоглянцевые панели с рисунком, 9 мм","Элеганс черный",210109]
[null,"Высокоглянцевые панели с рисунком, 9 мм","Элеганс белый",210209]
[null,"Высокоглянцевые панели с рисунком, 9 мм","Элеганс красный",210309]
[null,"Высокоглянцевые панели с рисунком, 9 мм","Fresh -А",220209]
[null,"Высокоглянцевые панели с рисунком, 9 мм","Fresh -B",220709]
[null,"Высокоглянцевые панели с рисунком, 9 мм","Fresh -C ",220109]
[null,"Высокоглянцевые панели с рисунком, 9 мм","Sweet красный"]
[null,"Высокоглянцевые панели с рисунком, 9 мм","Sweet черный"]
[null,"Высокоглянцевые панели с текстурой дерева, 9 мм","Черная полоска",710109]
[null,"Высокоглянцевые панели с текстурой дерева, 9 мм","Белая полоска",720209]
[null,"Высокоглянцевые панели с текстурой дерева, 9 мм","Роза",303109]
[null,"Высокоглянцевые панели с текстурой дерева, 9 мм","Эбен",303209]
[null,"Высокоглянцевые панели с текстурой дерева, 9 мм","Ясень",303309]
[null,"Высокоглянцевые панели с текстурой дерева, 9 мм","Эбоне"]
[null,"Высокоглянцевые панели с текстурой дерева, 9 мм","Эбоне №2"]
[null,"Высокоглянцевые панели с голограммой, 9 мм","Shine-1-белый",410209]
[null,"Высокоглянцевые панели с голограммой, 9 мм","Shine-1-красный",410309]
[null,"Высокоглянцевые панели с голограммой, 9 мм","Shine-2-черный",420109]
[null,"Высокоглянцевые панели с голограммой, 9 мм","Shine-2-белый",420209]
[null,"Высокоглянцевые панели с голограммой, 9 мм","Shine-1 черный",410109]
[null,"Цифровая печать, 9 мм","Ailin 2000 (розы россыпью)",520209]
[null,"Цифровая печать, 9 мм","Ailin 3000 (герберы)",530209]
[null,"Цифровая печать, 9 мм","Ailin 4000- pearl(черные розы)",540209]
[null,"Цифровая печать, 9 мм","BF-SUN (желтые цветы)",560209]
[null,"Цифровая печать, 9 мм","Bfred_rose1 (красные розы)",550209]
[null,"МДФ рельефный, черновой, 18 мм","Черновой",600018]
[null,"МДФ рельефный,  крашенный (матовый), 18 мм","Темно-коричневый",600118]
[null,"МДФ рельефный,  крашенный (матовый), 18 мм","Белый",600218]
[null,"Акриловая лента, 21 мм","Черный ","BKS-9"]
[null,"Акриловая лента, 21 мм","Белый ","SW004"]
[null,"Акриловая лента, 21 мм","Бежевый ","SIV001"]
[null,"Акриловая лента, 21 мм","Красный"]
[null,"Акриловая лента, 21 мм","Фиолетовый","SP004"]
[null,"Акриловая лента, 21 мм","Светло-розовый"," SP004"]
[null,"Акриловая лента, 21 мм","Черный перламутр","SB002"]
[null,"Акриловая лента, 21 мм","Белый перламутр","SW004-1"]
[null,"Акриловая лента, 21 мм","Оранжевый перламутр","SS002"]
[null,"Акриловая лента, 21 мм","Красный перламутр","SR004"]
[null,"Акриловая лента, 21 мм","Алюминий перламутр","SC004"]
[null,"Акриловая лента, 21 мм","Fresh -В","SG001"]
[null,"Акриловая лента, 21 мм","Полоска черная","SBL001"]
[null,"Акриловая лента, 21 мм","Полоска белая","SWL001"]
[null,"Акриловая лента, 21 мм","Роза","SG006"]
[null,"Акриловая лента, 21 мм","Ясень","SP-001"]
[null,"Акриловая лента, 21 мм","Хаки перламутр","SG002"]
[null,"Акриловая лента, 21 мм","Зебрано светлый"]
[null,"Акриловая лента, 21 мм","Зебрано средний","SG004"]
[null,"Акриловая лента, 21 мм","Клен светлый","SP001"]
[null,"Акриловая лента, 21 мм","Клен темный","SO808"]
[null,"Акриловая лента, 21 мм","Эбен","SW008"]
[null,"Акриловая лента, 42 мм","Черный ","BKS-9"]
[null,"Акриловая лента, 42 мм","Белый ","SW004"]
[null,"Акриловая лента, 42 мм","Бежевый ","SIV001"]
[null,"Акриловая лента, 42 мм","Фиолетовый","SP004"]
[null,"Акриловая лента, 42 мм","Светло-розовый","SP004"]
[null,"Акриловая лента, 42 мм","Черный перламутр","SB002"]
[null,"Акриловая лента, 42 мм","Белый перламутр","SW004-1"]
[null,"Акриловая лента, 42 мм","Оранжевый перламутр","SS002"]
[null,"Акриловая лента, 42 мм","Красный перламутр","SR004"]
[null,"Акриловая лента, 42 мм","Алюминий перламутр","SC004"]
[null,"Акриловая лента, 42 мм","Фреш В","SG001"]
[null,"Акриловая лента, 42 мм","Полоска черная","SBL001"]
[null,"Акриловая лента, 42 мм","Полоска белая","SWL001"]
[null,"Акриловая лента, 42 мм","Роза","SG006"]
[null,"Акриловая лента, 42 мм","Ясень","SP-001"]
[null,"Акриловая лента, 42 мм","Зебрано средний"," SG004"]
[null,"Акриловая лента, 42 мм","Клен светлый","SP001"]
[null,"Акриловая лента, 42 мм","Клен темный","SO808"]
[null,"Акриловая лента, 42 мм","Орех глянец","SW001"]
[null,"Акриловая лента, 42 мм","Эбен"]
[null,"Алюминиевый профиль торцевой, L-2800 мм","Серебро",818823]
[null,"Алюминиевый профиль торцевой, L-2800 мм","Золото",818923]
[null,"Угловая заглушка","Хром",828823]
[null,"МДФ, прокладка, 9 мм","МДФ, прокладка, 9 мм"]
[null,"МДФ, прокладка, 18 мм","МДФ, прокладка, 18 мм"]
[null,"МДФ, бабочки, 18 мм","МДФ, бабочки, 18 мм"]
[null,"Искусственный камень Hanssem (Юж. Корея) 3680х760х12","Pure White","A-104"]
[null,"Искусственный камень Hanssem (Юж. Корея) 3680х760х12","Frost Land","F-104 "]
[null,"Искусственный камень Hanssem (Юж. Корея) 3680х760х12","Rocky Mountain","F-109 "]
[null,"Искусственный камень Hanssem (Юж. Корея) 3680х760х12","Cream Sands","S-110 "]
[null,"Искусственный камень Hanssem (Юж. Корея) 3680х760х12","Beige Sands","S-102 "]
[null,"Искусственный камень Hanssem (Юж. Корея) 3680х760х12","Night sky","S-119 "]
[null,"Искусственный камень Hanssem (Юж. Корея) 3680х760х12","Cerus","F-005 "]
[null,"Искусственный камень Hanssem (Юж. Корея) 3680х760х12","Rocky Mountain","F-109 "]
[null,"Искусственный камень Hanssem (Юж. Корея) 3680х760х12","Star Burst","F-204 "]
[null,"Искусственный камень Hanssem (Юж. Корея) 3680х760х12","Tourmaline","T-002 "]
[null,"Искусственный камень Staron (Юж. Корея) 3680х760х12","Quarry Arroyo ","QA260"]
[null,"Искусственный камень Staron (Юж. Корея) 3680х760х12","QUARRY ESKER ","QE240 "]
[null,"Искусственный камень Staron (Юж. Корея) 3680х760х12","QUARRY MESA ","QM242"]
[null,"Искусственный камень Staron (Юж. Корея) 3680х760х12","Aspen AMBER","AM631"]
[null,"Искусственный камень Staron (Юж. Корея) 3680х760х12","Aspen Brown ","AB632"]
[null,"Искусственный камень Staron (Юж. Корея) 3680х760х12","Aspen Fiesta","AF611"]
[null,"Искусственный камень Staron (Юж. Корея) 3680х760х12","Aspen Glacier ","AG612"]
[null,"Искусственный камень Staron (Юж. Корея) 3680х760х12","Aspen GREY","AG620"]
[null,"Искусственный камень Staron (Юж. Корея) 3680х760х12","Aspen Lava ","AL650 "]
[null,"Искусственный камень Staron (Юж. Корея) 3680х760х12","Aspen Mine ","AM633"]
[null,"Искусственный камень Staron (Юж. Корея) 3680х760х12","Aspen PEPPER","AP640"]
[null,"Искусственный камень Staron (Юж. Корея) 3680х760х12","Aspen Sky ","AS670"]
[null,"Искусственный камень Staron (Юж. Корея) 3680х760х12","Aspen Snow ","AS610 "]
[null,"Искусственный камень Staron (Юж. Корея) 3680х760х12","Aspen SPRUCE","AS660"]
[null,"Искусственный камень Staron (Юж. Корея) 3680х760х12","Metallic Beach","EB545"]
[null,"Искусственный камень Staron (Юж. Корея) 3680х760х12","Metallic Cosmos","EC 596"]
[null,"Искусственный камень Staron (Юж. Корея) 3680х760х12","Metallic VALENCIA","EB535"]
[null,"Искусственный камень Staron (Юж. Корея) 3680х760х12","Metallic Yukon ","EY510 "]
[null,"Искусственный камень Staron (Юж. Корея) 3680х760х12","Metallic Galaxy ","EG595 "]
[null,"Искусственный камень Staron (Юж. Корея) 3680х760х12","Metallic Sunray","АS 658"]
[null,"Искусственный камень Staron (Юж. Корея) 3680х760х12","Pebble AQUA ","PA860 "]
[null,"Искусственный камень Staron (Юж. Корея) 3680х760х12","Pebble Beach","PB812"]
[null,"Искусственный камень Staron (Юж. Корея) 3680х760х12","Pebble Blue ","PB870 "]
[null,"Искусственный камень Staron (Юж. Корея) 3680х760х12","Pebble CONFETTI","PC880 "]
[null,"Искусственный камень Staron (Юж. Корея) 3680х760х12","Pebble Copper ","PC851"]
[null,"Искусственный камень Staron (Юж. Корея) 3680х760х12","Pebble Dark Green","PD 828 "]
[null,"Искусственный камень Staron (Юж. Корея) 3680х760х12","Pebble Ebony","PE814"]
[null,"Искусственный камень Staron (Юж. Корея) 3680х760х12","Pebble Ice ","PI 811"]
[null,"Искусственный камень Staron (Юж. Корея) 3680х760х12","Pebble Frost ","PF812 "]
[null,"Искусственный камень Staron (Юж. Корея) 3680х760х12","Pebble Grey ","PG810"]
[null,"Искусственный камень Staron (Юж. Корея) 3680х760х12","Pebble Gold","PG840"]
[null,"Искусственный камень Staron (Юж. Корея) 3680х760х12","Pebble Kernel","PK843 "]
[null,"Искусственный камень Staron (Юж. Корея) 3680х760х12","Pebble Limestone ","PL848 "]
[null,"Искусственный камень Staron (Юж. Корея) 3680х760х12","Pebble Ponderosa ","PP868 "]
[null,"Искусственный камень Staron (Юж. Корея) 3680х760х12","Pebble ROSE ","PR850 "]
[null,"Искусственный камень Staron (Юж. Корея) 3680х760х12","Pebble Saratoga","PS820 "]
[null,"Искусственный камень Staron (Юж. Корея) 3680х760х12","Pebble Swan ","PS813"]
[null,"Искусственный камень Staron (Юж. Корея) 3680х760х12","Pebble SIENNA ","PS852 "]
[null,"Искусственный камень Staron (Юж. Корея) 3680х760х12","Pebble Terrain ","PT857"]
[null,"Искусственный камень Staron (Юж. Корея) 3680х760х12","QUARRY CANYON ","QC261"]
[null,"Искусственный камень Staron (Юж. Корея) 3680х760х12","SANDED BIRCH ","SB 412 "]
[null,"Искусственный камень Staron (Юж. Корея) 3680х760х12","Sanded Cornmeal ","SC433 "]
[null,"Искусственный камень Staron (Юж. Корея) 3680х760х12","Sanded Chesnut","SC 457 "]
[null,"Искусственный камень Staron (Юж. Корея) 3680х760х12","SANDED CREAM","SM421 "]
[null,"Искусственный камень Staron (Юж. Корея) 3680х760х12","SANDED DARK NEBULA ","DN421 "]
[null,"Искусственный камень Staron (Юж. Корея) 3680х760х12","SANDED GOLD DUST","SG441"]
[null,"Искусственный камень Staron (Юж. Корея) 3680х760х12","SANDED GREY","SG420 "]
[null,"Искусственный камень Staron (Юж. Корея) 3680х760х12","SANDED ICICLE","SI414 "]
[null,"Искусственный камень Staron (Юж. Корея) 3680х760х12","SANDED KIWI ","SK432"]
[null,"Искусственный камень Staron (Юж. Корея) 3680х760х12","SANDED MOCHA","SM453 "]
[null,"Искусственный камень Staron (Юж. Корея) 3680х760х12","Sanded Oatmeal ","SO446"]
[null,"Искусственный камень Staron (Юж. Корея) 3680х760х12","SANDED ONYX ","SO423 "]
[null,"Искусственный камень Staron (Юж. Корея) 3680х760х12","SANDED PINE ","SP462"]
[null,"Искусственный камень Staron (Юж. Корея) 3680х760х12","SANDED SAHARA ","SS440 "]
[null,"Искусственный камень Staron (Юж. Корея) 3680х760х12","SANDED SANSET ","SS451 "]
[null,"Искусственный камень Staron (Юж. Корея) 3680х760х12","SANDED STRATUS ","SS418"]
[null,"Искусственный камень Staron (Юж. Корея) 3680х760х12","SANDED VERMILLION ","SV430 "]
[null,"Искусственный камень Staron (Юж. Корея) 3680х760х12","SANDED WHITE PEPPER","WP410 "]
[null,"Искусственный камень Staron (Юж. Корея) 3680х760х12","Solid BRIGHT WHITE","BW010"]
[null,"Искусственный камень Staron (Юж. Корея) 3680х760х12","Solid Fog ","SF020 "]
[null,"Искусственный камень Staron (Юж. Корея) 3680х760х12","Solid GREEN TEA ","SG065"]
[null,"Искусственный камень Staron (Юж. Корея) 3680х760х12","Solid Onyx ","ON 095 "]
[null,"Искусственный камень Staron (Юж. Корея) 3680х760х12","Solid Ivory ","SI040"]
[null,"Искусственный камень Staron (Юж. Корея) 3680х760х12","Solid Iris ","SI 056 "]
[null,"Искусственный камень Staron (Юж. Корея) 3680х760х12","Solid Natural ","SV041"]
[null,"Искусственный камень Staron (Юж. Корея) 3680х760х12","Solid Pure White ","SP016 "]
[null,"Искусственный камень Staron (Юж. Корея) 3680х760х12","Solid Pearl ","SP011 "]
[null,"Искусственный камень Staron (Юж. Корея) 3680х760х12"," Solid  Steel ","ST023"]
[null,"Искусственный камень Staron (Юж. Корея) 3680х760х12","Solid SKYLIGHT ","SI071 "]
[null,"Искусственный камень Staron (Юж. Корея) 3680х760х12","Solid Sunflower","SS042 "]
[null,"Искусственный камень Staron (Юж. Корея) 3680х760х12","Solid Univers ","SU053"]
[null,"Искусственный камень Staron (Юж. Корея) 3680х760х12","TALUS ASH ","TA395"]
[null,"Искусственный камень Staron (Юж. Корея) 3680х760х12","TALUS LUNA ","TL385 "]
[null,"Искусственный камень Staron (Юж. Корея) 3680х760х12","TALUS OYSTER","TO310"]
[null,"Искусственный камень Staron (Юж. Корея) 3680х760х12","TEMPEST BRICK ","FB134 "]
[null,"Искусственный камень Staron (Юж. Корея) 3680х760х12","TEMPEST ADAMANTINE ","FA159"]
[null,"Искусственный камень Staron (Юж. Корея) 3680х760х12","TEMPEST BRILLIANCE","FB117"]
[null,"Искусственный камень Staron (Юж. Корея) 3680х760х12","TEMPEST BLAZE","FB147"]
[null,"Искусственный камень Staron (Юж. Корея) 3680х760х12","TEMPEST COFFEE BEAN","FC158"]
[null,"Искусственный камень Staron (Юж. Корея) 3680х760х12","TEMPEST DAZZLE ","FD191"]
[null,"Искусственный камень Staron (Юж. Корея) 3680х760х12","Tempest Glimmer","FG 144 "]
[null,"Искусственный камень Staron (Юж. Корея) 3680х760х12","TEMPEST GLEAM ","FG146 "]
[null,"Искусственный камень Staron (Юж. Корея) 3680х760х12","Tempest Genesis ","FG 174"]
[null,"Искусственный камень Staron (Юж. Корея) 3680х760х12","TEMPEST GOLD LEAF","FG196"]
[null,"Искусственный камень Staron (Юж. Корея) 3680х760х12","TEMPEST PEAK","FP100 "]
[null,"Искусственный камень Staron (Юж. Корея) 3680х760х12","TEMPEST PAPRIKA","FP136 "]
[null,"Искусственный камень Staron (Юж. Корея) 3680х760х12","TEMPEST RIME","FR 118 "]
[null,"Искусственный камень Staron (Юж. Корея) 3680х760х12","TEMPEST RATTAN ","FR124 "]
[null,"Искусственный камень Staron (Юж. Корея) 3680х760х12","TEMPEST SHALLOT","FS157 "]
[null,"Искусственный камень Staron (Юж. Корея) 3680х760х12","TEMPEST SHELL","FS115 "]
[null,"Искусственный камень Staron (Юж. Корея) 3680х760х12","TEMPEST SAPPHIRE","FS175 "]
[null,"Искусственный камень Staron (Юж. Корея) 3680х760х12","TEMPEST SHIMMER(Radiance) ","FR148 "]
[null,"Искусственный камень Staron (Юж. Корея) 3680х760х12","TEMPEST SANDPIPER","FS 121"]
[null,"Искусственный камень Staron (Юж. Корея) 3680х760х12","TEMPEST SPEARMINT ","FS164 "]
[null,"Искусственный камень Staron (Юж. Корея) 3680х760х12","TEMPEST SIERA","FS123 "]
[null,"Искусственный камень Staron (Юж. Корея) 3680х760х12","TEMPEST SPICE","FS137 "]
[null,"Искусственный камень Staron (Юж. Корея) 3680х760х12","TEMPEST TEKTITE","FT188 "]
[null,"Искусственный камень Staron (Юж. Корея) 3680х760х12","Tempest TWILIGHT","FT113 "]
[null,"Искусственный камень Staron (Юж. Корея) 3680х760х12","TEMPEST Starfire","FS198"]
[null,"Искусственный камень Staron (Юж. Корея) 3680х760х12","TEMPEST HORIZON","FH114 "]
[null,"Искусственный камень Staron (Юж. Корея) 3680х760х12","TEMPEST METEOR","FM111 "]
[null,"Искусственный камень Staron (Юж. Корея) 3680х760х12","TEMPEST MOONLIGHT","FM122 "]
[null,"Искусственный камень Staron (Юж. Корея) 3680х760х12","TEMPEST Praire ","FP142 "]
[null,"Искусственный камень Staron (Юж. Корея) 3680х760х12","Tempest Pinnacle","FP112 "]
[null,"Искусственный камень Staron (Юж. Корея) 3680х760х12","Tempest Constellation","FS197"]
[null,"Искусственный камень Staron (Юж. Корея) 3680х760х12","Tempest CONFECTION","FC116 "]
[null,"Искусственный камень Staron (Юж. Корея) 3680х760х12","Tempest Zenith ","FZ184 "]
[null,"Искусственный камень Staron (Юж. Корея) 3680х760х12","TEMPEST CINNAMON","FC153"]
[null,"Искусственный камень Staron (Юж. Корея) 3680х760х12","TEMPEST BRICK ","FB135 "]
[null,"Искусственный камень LG Hi-macs (Юж. Корея) 3680х760х12","Tapioca","G 50"]
[null,"Искусственный камень LG Hi-macs (Юж. Корея) 3680х760х12","White Granite","G 05"]
[null,"Искусственный камень LG Hi-macs (Юж. Корея) 3680х760х12","Macchito","G 111"]
[null,"Искусственный камень LG Hi-macs (Юж. Корея) 3680х760х12","Arktic Granite","G 34"]
[null,"Искусственный камень LG Hi-macs (Юж. Корея) 3680х760х12","Confetti Quartz","G 41"]
[null,"Искусственный камень LG Hi-macs (Юж. Корея) 3680х760х12","Chiming Black","G53 "]
[null,"Искусственный камень LG Hi-macs (Юж. Корея) 3680х760х12","Beach Sand","G48"]
[null,"Искусственный камень LG Hi-macs (Юж. Корея) 3680х760х12","Natural Quartz","G19 "]
[null,"Искусственный камень LG Hi-macs (Юж. Корея) 3680х760х12"," Desert Sand","G01"]
[null,"Искусственный камень LG Hi-macs (Юж. Корея) 3680х760х12","Platinum Granite","G07 "]
[null,"Искусственный камень LG Hi-macs (Юж. Корея) 3680х760х12","Grey Sand","G 02 "]
[null,"Искусственный камень LG Hi-macs (Юж. Корея) 3680х760х12","Sea Oat Quartz","G 38 "]
[null,"Искусственный камень LG Hi-macs (Юж. Корея) 3680х760х12","Ivory Quartz","G30 "]
[null,"Искусственный камень LG Hi-macs (Юж. Корея) 3680х760х12","Moonscape Quartz","G58 "]
[null,"Искусственный камень LG Hi-macs (Юж. Корея) 3680х760х12","Foliage Quartz","G64 "]
[null,"Искусственный камень LG Hi-macs (Юж. Корея) 3680х760х12","Banana","S26"]
[null,"Искусственный камень LG Hi-macs (Юж. Корея) 3680х760х12","Artic White","S06 "]
[null,"Искусственный камень LG Hi-macs (Юж. Корея) 3680х760х12","Black","S22 "]
[null,"Искусственный камень LG Hi-macs (Юж. Корея) 3680х760х12","Fiery Red","S25 "]
[null,"Искусственный камень LG Hi-macs (Юж. Корея) 3680х760х12","Orange","S27"]
[null,"Искусственный камень LG Hi-macs (Юж. Корея) 3680х760х12","Merapi","VB01"]
[null,"Искусственный камень LG Hi-macs (Юж. Корея) 3680х760х12","Latte","VN02"]
[null,"Искусственный камень LG Hi-macs (Юж. Корея) 3680х760х12","Mikeno","VE02 "]
[null,"Искусственный камень LG Hi-macs (Юж. Корея) 3680х760х12","Santa-ana","VA01"]
[null,"Искусственный камень LG Hi-macs (Юж. Корея) 3680х760х12","Santorini","VL21 "]
[null,"Искусственный камень LG Hi-macs (Юж. Корея) 3680х760х12","Kohala","VN24 "]
[null,"Искусственный камень LG Hi-macs (Юж. Корея) 3680х760х12","Stellar","VR21"]
[null,"Искусственный камень LG Hi-macs (Юж. Корея) 3680х760х12","Yellowstone","VE21 "]
[null,"Искусственный камень LG Hi-macs (Юж. Корея) 3680х760х12","Tambora","VE01"]
[null,"Искусственный камень LG Hi-macs (Юж. Корея) 3680х760х12","Gemini","VW01"]
[null,"Искусственный камень LG Hi-macs (Юж. Корея) 3680х760х12","Maui","VG21"]
[null,"Искусственный камень LG Hi-macs (Юж. Корея) 3680х760х12","Shasta","VE26 "]
[null,"Искусственный камень LG Hi-macs (Юж. Корея) 3680х760х12","Perna white","P001 "]
[null,"Искусственный камень LG Hi-macs (Юж. Корея) 3680х760х12","Perna black","P004"]
[null,"Искусственный камень LG Hi-macs (Юж. Корея) 3680х760х12","Jupiter","T008 "]
[null,"Искусственный камень LG Hi-macs (Юж. Корея) 3680х760х12","Pluto","T013 "]
[null,"Искусственный камень LG Hi-macs (Юж. Корея) 3680х760х12","Comet","T006"]
[null,"Искусственный камень LG Hi-macs (Юж. Корея) 3680х760х12","Venus","T011 "]
[null,"Искусственный камень LG Hi-macs (Юж. Корея) 3680х760х12","Uranus","T002"]
[null,"Искусственный камень LG Hi-macs (Юж. Корея) 3680х760х12","Triton","T007 "]
[null,"Искусственный камень LG Hi-macs (Юж. Корея) 3680х760х12","Saturn","T004 "]
[null,"Искусственный камень LG Hi-macs (Юж. Корея) 3680х760х12","Canossa","M202"]
[null,"Искусственный камень LG Hi-macs (Юж. Корея) 3680х760х12"," Lucca","M203"]

{"sheet":"данные ДСП","index":4,"n_rows":8,"n_cols":8,"rows_kept":8,"cut":false,"hidden":false,"merged":[]}
[null,"Для_цветов","Цвета","Код",null,"Наименования"]
[null,123456,"дрпр",654645,null,123456,null,"приход"]
[null,123456,"лорплд",65465,null,654321,null,"расход"]
[null,123456,"дрпд",2138]
[null,654321,"ддп",6546]
[null,654321,"джлдлпвп"]
[null,654321,"джлоапл"]
[null,654321,"аддапд"]